Organisation Name (A),Department (B),Service Cat Label (C ),Purpose of Spend (D),Expenditure CIPFA Sub Group (E ),Supplier (F),Supplier Reference (G),Pay Date (H),Transaction Number (I),Net Amount (J),Grant to VCSE? (K),Charity Number (L),Card Transaction (M),Irrecoverable VAT (N)
Pendle Borough Council,Parks & Recreation Services,Premises Related Expense,Grounds : R & M : Day to Day : Routine,2101,GEORGE BOOCOCK DECORATORS LTD,A0000427, 15/10/2020,PCO0307897,"1,534.00",N,,N,N/A
Pendle Borough Council,Property Services,Supplies and Services,EFM : Other Equipment,4003,BEVLAN OFFICE INTERIORS LTD,A0000440, 29/10/2020,EST0308124,412.50,N,,N,N/A
Pendle Borough Council,Property Services,Premises Related Expense,Bldgs : R & M : Day To Day,2001,BARROWFORD SAFE & LOCK SERV LT,A0000458, 29/10/2020,EST0308127,94.17,N,,N,N/A
Pendle Borough Council,Property Services,Premises Related Expense,Bldgs : Vandalism Repairs,2005,BARROWFORD SAFE & LOCK SERV LT,A0000458, 01/10/2020,EST0307640,71.25,N,,N,N/A
Pendle Borough Council,Parks & Recreation Services,Transport Related Expense,Hire of Plant,3502,R J CLOUGH & SON LTD,A0000567, 01/10/2020,PCO0307691,202.88,N,,N,N/A
Pendle Borough Council,Housing Regeneration Services,Transfer Payments,Storage & Homelessness prevention,6104,CAVALIER TAXIS,A0000638, 08/10/2020,HMR0307745,60.00,N,,N,N/A
Pendle Borough Council,Parks & Recreation Services,Supplies and Services,Protective Clothing,4201,ENGINEERING & FOUNDRY SUPPLIES,A0001002, 29/10/2020,PCO0308177,50.40,N,,N,N/A
Pendle Borough Council,Parks & Recreation Services,Supplies and Services,Protective Clothing,4201,ENGINEERING & FOUNDRY SUPPLIES,A0001002, 29/10/2020,PCO0308179,71.10,N,,N,N/A
Pendle Borough Council,Parks & Recreation Services,Supplies and Services,Protective Clothing,4201,ENGINEERING & FOUNDRY SUPPLIES,A0001002, 29/10/2020,PCO0308179,227.85,N,,N,N/A
Pendle Borough Council,Parks & Recreation Services,Supplies and Services,Protective Clothing,4201,ENGINEERING & FOUNDRY SUPPLIES,A0001002, 15/10/2020,PCO0307894,52.00,N,,N,N/A
Pendle Borough Council,Housing Regeneration Services,Premises Related Expense,Bldgs : R & M : Day To Day,2001,ESTATES & MANAGEMENT LTD,A0001051, 08/10/2020,HMR0307844,7.60,N,,N,N/A
Pendle Borough Council,Operational Services,Transport Related Expense,Tprt : Repairs : General,3105,FREIGHT TRANSPORT ASSOCIATION,A0001124, 22/10/2020,OPS0308010,26.45,N,,N,N/A
Pendle Borough Council,Operational Services,Transport Related Expense,Tprt : Repairs : General,3105,FREIGHT TRANSPORT ASSOCIATION,A0001124, 01/10/2020,OPS0307678,83.72,N,,N,N/A
Pendle Borough Council,Operational Services,Supplies and Services,EFM : Photocopiers,4001,FREIGHT TRANSPORT ASSOCIATION,A0001124, 08/10/2020,OPS0307750,825.00,N,,N,N/A
Pendle Borough Council,Operational Services,Supplies and Services,EFM Materials,4004,JEWSON LIMITED,A0001323, 22/10/2020,OPS0308003,34.32,N,,N,N/A
Pendle Borough Council,Parks & Recreation Services,Supplies and Services,Miscellaneous : Other,4707,JEWSON LIMITED,A0001323, 08/10/2020,PCO0307831,40.92,N,,N,N/A
Pendle Borough Council,Parks & Recreation Services,Supplies and Services,Miscellaneous : Other,4707,JEWSON LIMITED,A0001323, 08/10/2020,PCO0307830,63.29,N,,N,N/A
Pendle Borough Council,Operational Services,Premises Related Expense,Bldgs : R & M : Day To Day,2001,REDACTED - PERSONAL DATA,A0001359, 08/10/2020,OPS0307777,40.00,N,,N,N/A
Pendle Borough Council,Operational Services,Supplies and Services,EFM Materials,4004,REDACTED - PERSONAL DATA,A0001359, 08/10/2020,OPS0307776,25.00,N,,N,N/A
Pendle Borough Council,Engineering & Special Projects,Premises Related Expense,Grounds : R & M : Day to Day : Routine,2101,LANLEE SUPPLIES LIMITED,A0001672, 01/10/2020,HED0307647,144.73,N,,N,N/A
Pendle Borough Council,Engineering & Special Projects,Premises Related Expense,Grounds : R & M : Day to Day : Routine,2101,LANLEE SUPPLIES LIMITED,A0001672, 22/10/2020,HED0307975,318.75,N,,N,N/A
Pendle Borough Council,Parks & Recreation Services,Supplies and Services,Expenditure : Materials,0002,LBS WORLDWIDE LIMITED,A0001673, 22/10/2020,PCO0308052,90.80,N,,N,N/A
Pendle Borough Council,Democratic & Legal Services,Supplies and Services,Search Fees,4404,LANCASHIRE COUNTY COUNCIL,A0001690, 01/10/2020,DAL0307621,300.00,N,,N,N/A
Pendle Borough Council,Democratic & Legal Services,Supplies and Services,Search Fees,4404,LANCASHIRE COUNTY COUNCIL,A0001690, 22/10/2020,DAL0307949,441.00,N,,N,N/A
Pendle Borough Council,Democratic & Legal Services,Capital Costs,Ren Grant : 1996 Act,CH22,LANCASHIRE COUNTY COUNCIL,A0001690, 22/10/2020,DAL0307950,"2,925.00",N,,N,
Pendle Borough Council,Housing Regeneration Services,Capital Costs,Ren Grant : 1996 Act,CH22,LANCASHIRE COUNTY COUNCIL,A0001690, 08/10/2020,HMR0307838,"3,055.00",N,,N,
Pendle Borough Council,Engineering & Special Projects,Premises Related Expense,Grounds : R & M : Day to Day : Routine,2101,LIMELIGHT SIGNS LIMITED,A0001796, 15/10/2020,HED0307909,155.80,N,,N,N/A
Pendle Borough Council,Engineering & Special Projects,Capital Costs,Capital : Payments,CD14,LIMELIGHT SIGNS LIMITED,A0001796, 15/10/2020,HED0307908,99.96,N,,N,N/A
Pendle Borough Council,Engineering & Special Projects,Capital Costs,Capital : Payments,CD14,MONK OF COLNE LTD,A0001828, 29/10/2020,HED0308141,"4,831.72",N,,N,N/A
Pendle Borough Council,Property Services,Premises Related Expense,Water & Sewerage,2501,WATER PLUS LIMITED,A0001986, 15/10/2020,EST0307871,68.78,N,,N,N/A
Pendle Borough Council,Property Services,Premises Related Expense,Water & Sewerage,2501,WATER PLUS LIMITED,A0001986, 29/10/2020,EST0308130,119.46,N,,N,N/A
Pendle Borough Council,Property Services,Premises Related Expense,Water & Sewerage,2501,WATER PLUS LIMITED,A0001986, 29/10/2020,EST4006275,-90.94,N,,N,N/A
Pendle Borough Council,Property Services,Premises Related Expense,Water & Sewerage,2501,WATER PLUS LIMITED,A0001986, 29/10/2020,EST0307964,133.68,N,,N,N/A
Pendle Borough Council,Property Services,Premises Related Expense,Water & Sewerage,2501,WATER PLUS LIMITED,A0001986, 29/10/2020,EST0308132,122.04,N,,N,N/A
Pendle Borough Council,Property Services,Premises Related Expense,Water & Sewerage,2501,WATER PLUS LIMITED,A0001986, 15/10/2020,EST0307875,148.37,N,,N,N/A
Pendle Borough Council,Property Services,Premises Related Expense,Water & Sewerage,2501,WATER PLUS LIMITED,A0001986, 29/10/2020,EST0308135,51.52,N,,N,N/A
Pendle Borough Council,Property Services,Premises Related Expense,Water & Sewerage,2501,WATER PLUS LIMITED,A0001986, 15/10/2020,EST0307867,47.25,N,,N,N/A
Pendle Borough Council,Property Services,Premises Related Expense,Water & Sewerage,2501,WATER PLUS LIMITED,A0001986, 15/10/2020,EST0307868,959.21,N,,N,N/A
Pendle Borough Council,Democratic & Legal Services,Premises Related Expense,Water & Sewerage,2501,WATER PLUS LIMITED,A0001986, 29/10/2020,DAL4006273,-815.22,N,,N,N/A
Pendle Borough Council,Democratic & Legal Services,Premises Related Expense,Water & Sewerage,2501,WATER PLUS LIMITED,A0001986, 29/10/2020,DAL0307951,268.02,N,,N,N/A
Pendle Borough Council,Property Services,Premises Related Expense,Water & Sewerage,2501,WATER PLUS LIMITED,A0001986, 15/10/2020,EST0307874,476.13,N,,N,N/A
Pendle Borough Council,Property Services,Premises Related Expense,Water & Sewerage,2501,WATER PLUS LIMITED,A0001986, 29/10/2020,EST4006276,-327.30,N,,N,N/A
Pendle Borough Council,Property Services,Premises Related Expense,Water & Sewerage,2501,WATER PLUS LIMITED,A0001986, 29/10/2020,EST0307968,315.08,N,,N,N/A
Pendle Borough Council,Property Services,Premises Related Expense,Water & Sewerage,2501,WATER PLUS LIMITED,A0001986, 15/10/2020,EST0307870,327.30,N,,N,N/A
Pendle Borough Council,Property Services,Premises Related Expense,Water & Sewerage,2501,WATER PLUS LIMITED,A0001986, 29/10/2020,EST0308131,175.09,N,,N,N/A
Pendle Borough Council,Property Services,Premises Related Expense,Water & Sewerage,2501,WATER PLUS LIMITED,A0001986, 29/10/2020,EST0308133,177.97,N,,N,N/A
Pendle Borough Council,Democratic & Legal Services,Supplies and Services,Postages,4501,ROYAL MAIL GROUP LIMITED,A0002281, 08/10/2020,DAL4006271,-946.38,N,,N,N/A
Pendle Borough Council,Democratic & Legal Services,Supplies and Services,Postages,4501,ROYAL MAIL GROUP LIMITED,A0002281, 08/10/2020,DAL0307733,260.06,N,,N,N/A
Pendle Borough Council,Democratic & Legal Services,Supplies and Services,Postages,4501,ROYAL MAIL GROUP LIMITED,A0002281, 22/10/2020,DAL0307945,409.64,N,,N,N/A
Pendle Borough Council,Democratic & Legal Services,Supplies and Services,Postages,4501,ROYAL MAIL GROUP LIMITED,A0002281, 08/10/2020,DAL0307733,71.46,N,,N,N/A
Pendle Borough Council,Democratic & Legal Services,Supplies and Services,Postages,4501,ROYAL MAIL GROUP LIMITED,A0002281, 22/10/2020,DAL0307945,81.19,N,,N,N/A
Pendle Borough Council,Democratic & Legal Services,Supplies and Services,Postages,4501,ROYAL MAIL GROUP LIMITED,A0002281, 08/10/2020,DAL0307733,12.11,N,,N,N/A
Pendle Borough Council,Democratic & Legal Services,Supplies and Services,Postages,4501,ROYAL MAIL GROUP LIMITED,A0002281, 22/10/2020,DAL0307945,14.73,N,,N,N/A
Pendle Borough Council,Democratic & Legal Services,Supplies and Services,Postages,4501,ROYAL MAIL GROUP LIMITED,A0002281, 08/10/2020,DAL0307733,1.64,N,,N,N/A
Pendle Borough Council,Democratic & Legal Services,Supplies and Services,Postages,4501,ROYAL MAIL GROUP LIMITED,A0002281, 22/10/2020,DAL0307945,1.64,N,,N,N/A
Pendle Borough Council,Democratic & Legal Services,Supplies and Services,Postages,4501,ROYAL MAIL GROUP LIMITED,A0002281, 08/10/2020,DAL0307733,21.10,N,,N,N/A
Pendle Borough Council,Democratic & Legal Services,Supplies and Services,Postages,4501,ROYAL MAIL GROUP LIMITED,A0002281, 22/10/2020,DAL0307945,51.31,N,,N,N/A
Pendle Borough Council,Democratic & Legal Services,Supplies and Services,Postages,4501,ROYAL MAIL GROUP LIMITED,A0002281, 08/10/2020,DAL0307733,120.96,N,,N,N/A
Pendle Borough Council,Democratic & Legal Services,Supplies and Services,Postages,4501,ROYAL MAIL GROUP LIMITED,A0002281, 22/10/2020,DAL0307945,147.22,N,,N,N/A
Pendle Borough Council,Democratic & Legal Services,Supplies and Services,Postages,4501,ROYAL MAIL GROUP LIMITED,A0002281, 22/10/2020,DAL0307945,83.17,N,,N,N/A
Pendle Borough Council,Democratic & Legal Services,Supplies and Services,Postages,4501,ROYAL MAIL GROUP LIMITED,A0002281, 08/10/2020,DAL0307733,114.42,N,,N,N/A
Pendle Borough Council,Democratic & Legal Services,Supplies and Services,Postages,4501,ROYAL MAIL GROUP LIMITED,A0002281, 08/10/2020,DAL0307733,19.64,N,,N,N/A
Pendle Borough Council,Democratic & Legal Services,Supplies and Services,Postages,4501,ROYAL MAIL GROUP LIMITED,A0002281, 22/10/2020,DAL0307945,35.15,N,,N,N/A
Pendle Borough Council,Democratic & Legal Services,Supplies and Services,Postages,4501,ROYAL MAIL GROUP LIMITED,A0002281, 08/10/2020,DAL0307733,3.20,N,,N,N/A
Pendle Borough Council,Democratic & Legal Services,Supplies and Services,Postages,4501,ROYAL MAIL GROUP LIMITED,A0002281, 22/10/2020,DAL0307945,267.90,N,,N,N/A
Pendle Borough Council,Democratic & Legal Services,Supplies and Services,Postages,4501,ROYAL MAIL GROUP LIMITED,A0002281, 08/10/2020,DAL0307733,370.60,N,,N,N/A
Pendle Borough Council,Operational Services,Supplies and Services,Postages,4501,ROYAL MAIL GROUP LIMITED,A0002281, 01/10/2020,OPS0307680,-5.84,N,,N,N/A
Pendle Borough Council,Operational Services,Supplies and Services,Postages,4501,ROYAL MAIL GROUP LIMITED,A0002281, 01/10/2020,OPS0307680,46.53,N,,N,N/A
Pendle Borough Council,Democratic & Legal Services,Supplies and Services,Postages,4501,ROYAL MAIL GROUP LIMITED,A0002281, 08/10/2020,DAL0307733,77.22,N,,N,N/A
Pendle Borough Council,Democratic & Legal Services,Supplies and Services,Postages,4501,ROYAL MAIL GROUP LIMITED,A0002281, 22/10/2020,DAL0307945,110.89,N,,N,N/A
Pendle Borough Council,Financial Services,Supplies and Services,Levies,4423,RIBBLE VALLEY BOROUGH COUNCIL,A0002290, 01/10/2020,AAS0307572,"2,178.10",N,,N,N/A
Pendle Borough Council,Operational Services,Supplies and Services,Sub-Contractors,4007,ROSSENDALE PET CREMATORIUM,A0002345, 22/10/2020,OPS0308004,52.40,N,,N,N/A
Pendle Borough Council,Parks & Recreation Services,Premises Related Expense,Grounds : R & M : Day to Day : Routine,2101,ROBERTSON MEMORIALS,A0002590, 15/10/2020,PCO0307901,165.39,N,,N,N/A
Pendle Borough Council,Parks & Recreation Services,Premises Related Expense,Grounds : R & M : Day to Day : Routine,2101,ROBERTSON MEMORIALS,A0002590, 15/10/2020,PCO0307902,255.30,N,,N,N/A
Pendle Borough Council,Property Services,Premises Related Expense,Bldgs : R & M : Day To Day,2001,T & F STEEL DESIGNS LTD,A0002627, 29/10/2020,EST0308126,235.00,N,,N,N/A
Pendle Borough Council,Property Services,Premises Related Expense,Bldgs : R & M : Day To Day,2001,T & F STEEL DESIGNS LTD,A0002627, 29/10/2020,EST0308126,440.00,N,,N,N/A
Pendle Borough Council,Property Services,Premises Related Expense,Bldgs : Vandalism Repairs,2005,T & F STEEL DESIGNS LTD,A0002627, 29/10/2020,EST0308125,40.00,N,,N,N/A
Pendle Borough Council,Property Services,Premises Related Expense,Bldgs : Vandalism Repairs,2005,T & F STEEL DESIGNS LTD,A0002627, 29/10/2020,EST0308125,88.00,N,,N,N/A
Pendle Borough Council,Planning & Building Control,Supplies and Services,EFM : Other Equipment,4003,TRISTAR PRINTERS LTD,A0002731, 15/10/2020,PBC0307891,250.00,N,,N,N/A
Pendle Borough Council,Planning & Building Control,Supplies and Services,EFM : Other Equipment,4003,TRISTAR PRINTERS LTD,A0002731, 15/10/2020,PBC0307891,125.00,N,,N,N/A
Pendle Borough Council,Planning & Building Control,Supplies and Services,EFM Materials,4004,TRISTAR PRINTERS LTD,A0002731, 08/10/2020,PBC0307758,106.00,N,,N,N/A
Pendle Borough Council,Operational Services,Agency Staff,Emp : Agency Wages,1004,DHRB LIMITED T/A DRIVER HIRE (45680),A0003556, 22/10/2020,OPS0308001,93.28,N,,N,N/A
Pendle Borough Council,Operational Services,Agency Staff,Emp : Agency Wages,1004,DHRB LIMITED T/A DRIVER HIRE (45680),A0003556, 15/10/2020,OPS0307887,575.35,N,,N,N/A
Pendle Borough Council,Operational Services,Agency Staff,Emp : Agency Wages,1004,DHRB LIMITED T/A DRIVER HIRE (45680),A0003556, 29/10/2020,OPS0308175,466.50,N,,N,N/A
Pendle Borough Council,Operational Services,Agency Staff,Emp : Agency Wages,1004,DHRB LIMITED T/A DRIVER HIRE (45680),A0003556, 15/10/2020,OPS0307888,575.36,N,,N,N/A
Pendle Borough Council,Operational Services,Agency Staff,Emp : Agency Wages,1004,DHRB LIMITED T/A DRIVER HIRE (45680),A0003556, 22/10/2020,OPS0308001,581.18,N,,N,N/A
Pendle Borough Council,Operational Services,Agency Staff,Emp : Agency Wages,1004,DHRB LIMITED T/A DRIVER HIRE (45680),A0003556, 15/10/2020,OPS0307886,575.35,N,,N,N/A
Pendle Borough Council,Democratic & Legal Services,Supplies and Services,Mobile Phones,4508,EE LIMITED,A0004680, 22/10/2020,DAL4006274,-100.00,N,,N,N/A
Pendle Borough Council,Democratic & Legal Services,Supplies and Services,Mobile Phones,4508,EE LIMITED,A0004680, 22/10/2020,DAL0307944,346.00,N,,N,N/A
Pendle Borough Council,Housing Regeneration Services,Supplies and Services,Grant Funding,4737,REDACTED - PERSONAL DATA,A0005524, 22/10/2020,HMR0307984,"4,500.00",N,1144741,N,N/A
Pendle Borough Council,Operational Services,Transport Related Expense,Diesel Oil,3202,CERTAS ENERGY UK T/A TOWNSON BROS,A0005683, 01/10/2020,OPS0307701,357.93,N,,N,N/A
Pendle Borough Council,Operational Services,Transport Related Expense,Diesel Oil,3202,CERTAS ENERGY UK T/A TOWNSON BROS,A0005683, 01/10/2020,OPS0307701,357.91,N,,N,N/A
Pendle Borough Council,Operational Services,Transport Related Expense,Diesel Oil,3202,CERTAS ENERGY UK T/A TOWNSON BROS,A0005683, 01/10/2020,OPS0307701,357.91,N,,N,N/A
Pendle Borough Council,Parks & Recreation Services,Transport Related Expense,Diesel Oil,3202,CERTAS ENERGY UK T/A TOWNSON BROS,A0005683, 29/10/2020,PCO0308176,"1,614.60",N,,N,N/A
Pendle Borough Council,Parks & Recreation Services,Transport Related Expense,Diesel Oil,3202,CERTAS ENERGY UK T/A TOWNSON BROS,A0005683, 01/10/2020,PCO0307688,"1,743.13",N,,N,N/A
Pendle Borough Council,Housing Regeneration Services,Indirect Employee Expenses,Staff Refreshments,1261,REDACTED - PERSONAL DATA,A0006611, 15/10/2020,HMR0307881,15.68,N,,N,N/A
Pendle Borough Council,Housing Regeneration Services,Supplies and Services,Hospitality,4611,REDACTED - PERSONAL DATA,A0006611, 15/10/2020,HMR0307881,20.40,N,,N,N/A
Pendle Borough Council,Property Services,Indirect Employee Expenses,Staff Refreshments,1261,VENDA VALET (MACHINES) LTD,A0009649, 15/10/2020,EST0307864,65.00,N,,N,N/A
Pendle Borough Council,Operational Services,Supplies and Services,Other Expenses,4705,POLICE & CRIME COMMISSIONER FOR LANCASHIRE,A0009816, 22/10/2020,OPS0308012,859.53,N,,N,N/A
Pendle Borough Council,Financial Services,Supplies and Services,Other Expenses,4705,PENDLE LEISURE LIMITED,A0012961, 01/10/2020,AAS0307719,"721,180.00",N,XR43029,N,N/A
Pendle Borough Council,Housing Regeneration Services,Supplies and Services,Other Expenses,4705,PENDLE LEISURE LIMITED,A0012961, 15/10/2020,HMR0307883,"4,000.00",N,XR43029,N,N/A
Pendle Borough Council,Democratic & Legal Services,Supplies and Services,Other Expenses,4705,PENDLE LEISURE LIMITED,A0012961, 01/10/2020,DAL0307633,"7,402.54",N,XR43029,N,N/A
Pendle Borough Council,Planning & Building Control,Supplies and Services,Grants/Contributions,4739,REDACTED - PERSONAL DATA,A0012961, 08/10/2020,PBC0307752,18.00,N,XR43029,N,N/A
Pendle Borough Council,Planning & Building Control,Supplies and Services,Grants/Contributions,4739,REDACTED - PERSONAL DATA,A0012961, 08/10/2020,PBC0307752,135.00,N,XR43029,N,N/A
Pendle Borough Council,Operational Services,Supplies and Services,Sub-Contractors,4007,ORCHARD RECYCLING SERVICE,A0015803, 22/10/2020,OPS0308008,"2,464.00",N,,N,N/A
Pendle Borough Council,Operational Services,Supplies and Services,Sub-Contractors,4007,ORCHARD RECYCLING SERVICE,A0015803, 15/10/2020,OPS0307911,"2,479.40",N,,N,N/A
Pendle Borough Council,Operational Services,Supplies and Services,Sub-Contractors,4007,ORCHARD RECYCLING SERVICE,A0015803, 01/10/2020,OPS0307697,"2,487.10",N,,N,N/A
Pendle Borough Council,Operational Services,Supplies and Services,Sub-Contractors,4007,ORCHARD RECYCLING SERVICE,A0015803, 08/10/2020,OPS0307751,"2,487.10",N,,N,N/A
Pendle Borough Council,Operational Services,Supplies and Services,Sub-Contractors,4007,ORCHARD RECYCLING SERVICE,A0015803, 29/10/2020,OPS0308178,"2,487.10",N,,N,N/A
Pendle Borough Council,Operational Services,Supplies and Services,Miscellaneous : Other,4707,ORCHARD RECYCLING SERVICE,A0015803, 29/10/2020,OPS0308178,131.50,N,,N,N/A
Pendle Borough Council,Operational Services,Supplies and Services,Miscellaneous : Other,4707,ORCHARD RECYCLING SERVICE,A0015803, 22/10/2020,OPS0308008,136.25,N,,N,N/A
Pendle Borough Council,Operational Services,Supplies and Services,Miscellaneous : Other,4707,ORCHARD RECYCLING SERVICE,A0015803, 01/10/2020,OPS0307697,161.25,N,,N,N/A
Pendle Borough Council,Operational Services,Supplies and Services,Miscellaneous : Other,4707,ORCHARD RECYCLING SERVICE,A0015803, 08/10/2020,OPS0307751,175.25,N,,N,N/A
Pendle Borough Council,Operational Services,Supplies and Services,Miscellaneous : Other,4707,ORCHARD RECYCLING SERVICE,A0015803, 15/10/2020,OPS0307911,184.75,N,,N,N/A
Pendle Borough Council,Operational Services,Agency Costs,Fast Action Response,5009,ORCHARD RECYCLING SERVICE,A0015803, 29/10/2020,OPS0308178,131.50,N,,N,N/A
Pendle Borough Council,Operational Services,Agency Costs,Fast Action Response,5009,ORCHARD RECYCLING SERVICE,A0015803, 22/10/2020,OPS0308008,136.25,N,,N,N/A
Pendle Borough Council,Operational Services,Agency Costs,Fast Action Response,5009,ORCHARD RECYCLING SERVICE,A0015803, 01/10/2020,OPS0307697,161.25,N,,N,N/A
Pendle Borough Council,Operational Services,Agency Costs,Fast Action Response,5009,ORCHARD RECYCLING SERVICE,A0015803, 08/10/2020,OPS0307751,175.25,N,,N,N/A
Pendle Borough Council,Operational Services,Agency Costs,Fast Action Response,5009,ORCHARD RECYCLING SERVICE,A0015803, 15/10/2020,OPS0307911,184.75,N,,N,N/A
Pendle Borough Council,Democratic & Legal Services,Supplies and Services,LCC Levy (Admins Costs),4419,JACOBS,A0016294, 22/10/2020,DAL0307953,-310.00,N,,N,N/A
Pendle Borough Council,Democratic & Legal Services,Supplies and Services,LCC Levy (Admins Costs),4419,JACOBS,A0016294, 22/10/2020,DAL0307954,-75.00,N,,N,N/A
Pendle Borough Council,Democratic & Legal Services,Supplies and Services,LCC Levy (Admins Costs),4419,JACOBS,A0016294, 22/10/2020,DAL0307954,75.00,N,,N,N/A
Pendle Borough Council,Democratic & Legal Services,Supplies and Services,LCC Levy (Admins Costs),4419,JACOBS,A0016294, 22/10/2020,DAL0307953,310.00,N,,N,N/A
Pendle Borough Council,Parks & Recreation Services,Transport Related Expense,Tprt : Repairs : General,3105,WALTON SUMMIT TRUCK  CENTRE LTD,A0020983, 08/10/2020,PCO4006208,-109.67,N,,N,N/A
Pendle Borough Council,Parks & Recreation Services,Transport Related Expense,Tprt : Repairs : General,3105,WALTON SUMMIT TRUCK  CENTRE LTD,A0020983, 08/10/2020,PCO0306342,72.62,N,,N,N/A
Pendle Borough Council,Parks & Recreation Services,Transport Related Expense,Tprt : Repairs : General,3105,WALTON SUMMIT TRUCK  CENTRE LTD,A0020983, 08/10/2020,PCO0307764,110.00,N,,N,N/A
Pendle Borough Council,Operational Services,Supplies and Services,Sub-Contractors,4007,ASPEN VALLEY KENNELS & CATTERY,A0022106, 08/10/2020,OPS0307789,775.00,N,,N,N/A
Pendle Borough Council,Operational Services,Supplies and Services,Other Expenses,4705,ASPEN VALLEY KENNELS & CATTERY,A0022106, 08/10/2020,OPS0307789,813.60,N,,N,N/A
Pendle Borough Council,Property Services,Premises Related Expense,Electricity,2203,E.ON,A0023073, 15/10/2020,EST0307866,2.08,N,,N,N/A
Pendle Borough Council,Property Services,Premises Related Expense,Electricity,2203,E.ON,A0023073, 15/10/2020,EST0307865,21.13,N,,N,N/A
Pendle Borough Council,Property Services,Premises Related Expense,Electricity,2203,E.ON,A0023073, 01/10/2020,EST0307634,21.82,N,,N,N/A
Pendle Borough Council,Democratic & Legal Services,Supplies and Services,Other Expenses,4705,GRADKO INTERNATIONAL LTD,A0025806, 22/10/2020,DAL0308040,188.10,N,,N,N/A
Pendle Borough Council,Financial Services,Premises Related Expense,Service Charge,2702,BARNFIELD INVESTMENT PROPERTIES LTD,A0026595, 08/10/2020,AAS0307726,"2,129.25",N,,N,N/A
Pendle Borough Council,Revenues Services,Supplies and Services,Consultants Fees,4401,FARRER & CO,A0027034, 08/10/2020,TRE0307768,450.00,N,,N,N/A
Pendle Borough Council,Engineering & Special Projects,Premises Related Expense,Bldgs : R & M : Day To Day,2001,LITE,A0040032, 15/10/2020,HED0307920,600.00,N,,N,N/A
Pendle Borough Council,Engineering & Special Projects,Premises Related Expense,Grounds : R & M : Day to Day : Routine,2101,LITE,A0040032, 15/10/2020,HED0307910,"1,040.00",N,,N,N/A
Pendle Borough Council,Engineering & Special Projects,Capital Costs,Capital : Payments,CD14,LITE,A0040032, 15/10/2020,HED0307920,580.00,N,,N,N/A
Pendle Borough Council,Engineering & Special Projects,Capital Costs,Capital : Payments,CD14,LITE,A0040032, 15/10/2020,HED0307907,"3,815.00",N,,N,N/A
Pendle Borough Council,Engineering & Special Projects,Capital Costs,Capital : Payments,CD14,LITE,A0040032, 15/10/2020,HED0307910,800.00,N,,N,N/A
Pendle Borough Council,Democratic & Legal Services,Supplies and Services,Court Fees,4403,REDACTED - PERSONAL DATA,A0040311, 01/10/2020,DAL0307622,3.50,N,,N,N/A
Pendle Borough Council,Operational Services,Supplies and Services,EFM : Photocopiers,4001,CANON (UK) LIMITED,A0040400, 22/10/2020,OPS0308005,526.44,N,,N,N/A
Pendle Borough Council,Operational Services,Supplies and Services,EFM : Photocopiers,4001,CANON (UK) LIMITED,A0040400, 22/10/2020,OPS0308051,468.97,N,,N,N/A
Pendle Borough Council,Planning & Building Control,Supplies and Services,Printing & Stationery,4301,CANON (UK) LIMITED,A0040400, 08/10/2020,PBC0307755,99.35,N,,N,N/A
Pendle Borough Council,Engineering & Special Projects,Premises Related Expense,Grounds : R & M : Day to Day : Routine,2101,METROSIGNS 2000,A0040805, 01/10/2020,HED0307646,612.50,N,,N,N/A
Pendle Borough Council,Property Services,Premises Related Expense,Bldgs : Vandalism Repairs,2005,PENNINE FIRE & SAFETY LTD,A0040931, 22/10/2020,EST0307959,38.00,N,,N,N/A
Pendle Borough Council,Democratic & Legal Services,Indirect Employee Expenses,Emp : Practising Certificates,1201,THE ASSOCIATION OF ELECTORAL ADMINISTRATORS,A0040939, 29/10/2020,DAL0308102,95.00,N,,N,N/A
Pendle Borough Council,Parks & Recreation Services,Premises Related Expense,Grounds : R & M : Day to Day : Routine,2101,VP PLC - GRAVSHORE,A0041286, 15/10/2020,PCO0307893,"1,130.65",N,,N,N/A
Pendle Borough Council,Democratic & Legal Services,Supplies and Services,Printing & Stationery,4301,CIVICA ELECTION SERVICES,A0041321, 15/10/2020,DAL0307861,261.40,N,,N,N/A
Pendle Borough Council,Democratic & Legal Services,Supplies and Services,Postages,4501,CIVICA ELECTION SERVICES,A0041321, 15/10/2020,DAL0307861,303.68,N,,N,N/A
Pendle Borough Council,Housing Regeneration Services,Supplies and Services,Postages,4501,CIVICA ELECTION SERVICES,A0041321, 15/10/2020,HMR0307884,"2,113.44",N,,N,N/A
Pendle Borough Council,Housing Regeneration Services,Supplies and Services,Grant Funding,4737,REDACTED - PERSONAL DATA,A0042503, 29/10/2020,HMR0308144,"8,725.46",N,1062446,N,N/A
Pendle Borough Council,Housing Regeneration Services,Supplies and Services,Grant Funding,4737,REDACTED - PERSONAL DATA,A0042503, 29/10/2020,HMR0308145,"25,000.00",N,1062446,N,N/A
Pendle Borough Council,Operational Services,,Stock : Purchases,PJ01,PMC POLYTHENE LIMITED,A0043215, 01/10/2020,OPS0307677,"1,728.60",N,,N,N/A
Pendle Borough Council,Parks & Recreation Services,Transport Related Expense,Tprt : Repairs : General,3105,REDACTED - PERSONAL DATA,A0043864, 15/10/2020,PCO0307898,80.00,N,,N,N/A
Pendle Borough Council,Parks & Recreation Services,Transport Related Expense,Tprt : Repairs : General,3105,REDACTED - PERSONAL DATA,A0043864, 15/10/2020,PCO0307899,80.00,N,,N,N/A
Pendle Borough Council,Operational Services,Supplies and Services,Sub-Contractors,4007,S M SHEPHERD BUILDING CONTRACTORS,A0044037, 29/10/2020,OPS0308114,70.00,N,,N,N/A
Pendle Borough Council,Operational Services,Supplies and Services,Sub-Contractors,4007,S M SHEPHERD BUILDING CONTRACTORS,A0044037, 01/10/2020,OPS0307675,170.00,N,,N,N/A
Pendle Borough Council,Operational Services,,Paid in the Year,PD03,S M SHEPHERD BUILDING CONTRACTORS,A0044037, 22/10/2020,OPS0308009,180.00,N,,N,N/A
Pendle Borough Council,Property Services,Premises Related Expense,Electricity,2203,E.ON UK PLC,A0044040, 15/10/2020,EST0307876,309.74,N,,N,N/A
Pendle Borough Council,Financial Services,Premises Related Expense,Bldgs : R & M : Day To Day,2001,PLUSNET TECHNOLOGIES LIMITED,A0045646, 05/10/2020,AAS0308057,15.00,N,,N,N/A
Pendle Borough Council,Engineering & Special Projects,Premises Related Expense,Grounds : R & M : Day to Day : Routine,2101,REDACTED - PERSONAL DATA,A0046430, 29/10/2020,HED0308136,37.57,N,,N,N/A
Pendle Borough Council,Property Services,Supplies and Services,Publicity & advertisement,4704,LOOP PUBLISHING LTD,A0047429, 15/10/2020,EST0307873,75.00,N,,N,N/A
Pendle Borough Council,Property Services,Supplies and Services,Publicity & advertisement,4704,LOOP PUBLISHING LTD,A0047429, 29/10/2020,EST0308104,100.00,N,,N,N/A
Pendle Borough Council,Property Services,Supplies and Services,Publicity & advertisement,4704,LOOP PUBLISHING LTD,A0047429, 15/10/2020,EST0307873,75.00,N,,N,N/A
Pendle Borough Council,Property Services,Supplies and Services,Publicity & advertisement,4704,LOOP PUBLISHING LTD,A0047429, 29/10/2020,EST0308104,100.00,N,,N,N/A
Pendle Borough Council,Operational Services,,Stock : Purchases,PJ01,DURASAK LIMITED,A0048736, 08/10/2020,OPS0307747,"1,182.00",N,,N,N/A
Pendle Borough Council,Parks & Recreation Services,Transport Related Expense,Tyres,3204,ROSSENDALE VULCANISING (SALES LTD),A0051239, 01/10/2020,PCO0307689,665.00,N,,N,N/A
Pendle Borough Council,Operational Services,Supplies and Services,EFM Materials,4004,MONTGOMERY SIGNS LIMITED,A0051335, 01/10/2020,OPS0307676,90.00,N,,N,N/A
Pendle Borough Council,Human Resources,Indirect Employee Expenses,Recruitment,1221,LIBERATA UK LTD,A0051618, 22/10/2020,PER0308017,105.00,N,,N,N/A
Pendle Borough Council,Financial Services,Agency Costs,Liberata,5301,LIBERATA UK LTD,A0051618, 22/10/2020,AAS0307932,"4,952.37",N,,N,N/A
Pendle Borough Council,Financial Services,Agency Costs,Liberata,5301,LIBERATA UK LTD,A0051618, 15/10/2020,AAS0307860,"12,252.65",N,,N,N/A
Pendle Borough Council,Financial Services,Agency Costs,Liberata,5301,LIBERATA UK LTD,A0051618, 22/10/2020,AAS0307932,"1,231.00",N,,N,N/A
Pendle Borough Council,Financial Services,Agency Costs,Liberata,5301,LIBERATA UK LTD,A0051618, 01/10/2020,AAS0307575,"8,920.00",N,,N,N/A
Pendle Borough Council,Financial Services,Agency Costs,Liberata,5301,LIBERATA UK LTD,A0051618, 01/10/2020,AAS0307574,"2,509.08",N,,N,N/A
Pendle Borough Council,Financial Services,Agency Costs,Liberata,5301,LIBERATA UK LTD,A0051618, 29/10/2020,AAS0308101,"2,509.08",N,,N,N/A
Pendle Borough Council,Financial Services,Agency Costs,#N/A,5303,LIBERATA UK LTD,A0051618, 15/10/2020,AAS0307927,"6,666.67",N,,N,N/A
Pendle Borough Council,Financial Services,Agency Costs,#N/A,5303,LIBERATA UK LTD,A0051618, 15/10/2020,AAS0307927,"35,443.56",N,,N,N/A
Pendle Borough Council,Financial Services,Agency Costs,#N/A,5303,LIBERATA UK LTD,A0051618, 15/10/2020,AAS0307927,"28,189.74",N,,N,N/A
Pendle Borough Council,Financial Services,Agency Costs,#N/A,5303,LIBERATA UK LTD,A0051618, 15/10/2020,AAS0307927,"81,006.65",N,,N,N/A
Pendle Borough Council,Financial Services,Agency Costs,#N/A,5303,LIBERATA UK LTD,A0051618, 15/10/2020,AAS0307927,"55,872.47",N,,N,N/A
Pendle Borough Council,Financial Services,Agency Costs,#N/A,5303,LIBERATA UK LTD,A0051618, 15/10/2020,AAS0307927,"82,761.12",N,,N,N/A
Pendle Borough Council,Financial Services,Agency Costs,#N/A,5303,LIBERATA UK LTD,A0051618, 15/10/2020,AAS0307927,"125,118.52",N,,N,N/A
Pendle Borough Council,Planning & Building Control,Supplies and Services,EFM Materials,4004,REDACTED - PERSONAL DATA,A0051653, 29/10/2020,PBC0308117,36.98,N,,N,N/A
Pendle Borough Council,Housing Regeneration Services,Capital Costs,Ren Grant : 1996 Act,CH22,BLUEBELL NORTH WEST LIMITED,A0051694, 08/10/2020,HMR0307841,"1,924.00",N,,N,
Pendle Borough Council,Property Services,Premises Related Expense,Electricity,2203,SOUTHERN ELECTRIC,A0051726, 15/10/2020,EST0307872,149.57,N,,N,N/A
Pendle Borough Council,Parks & Recreation Services,Premises Related Expense,Grounds : R & M : Day to Day : Routine,2101,ARCOL ENGINEERING LTD,A0052060, 01/10/2020,PCO0307690,180.00,N,,N,N/A
Pendle Borough Council,Operational Services,Supplies and Services,EFM Materials,4004,ARCOL ENGINEERING LTD,A0052060, 01/10/2020,OPS0307679,61.00,N,,N,N/A
Pendle Borough Council,Parks & Recreation Services,Premises Related Expense,Bldgs : R & M : Day To Day,2001,C B PRICE & SONS BUILDERS,A0052117, 29/10/2020,PCO0308120,"1,000.00",N,,N,N/A
Pendle Borough Council,Parks & Recreation Services,Transport Related Expense,Tprt : Repairs : General,3105,FLEET STREET GARAGE LIMITED,A0054291, 08/10/2020,PCO0307763,453.17,N,,N,N/A
Pendle Borough Council,Parks & Recreation Services,Premises Related Expense,Grounds : R & M : Day to Day : Routine,2101,THE PLAY INSPECTION COMPANY LTD,A0054674, 22/10/2020,PCO0308013,"2,727.40",N,,N,N/A
Pendle Borough Council,Operational Services,Indirect Employee Expenses,Emp : Training : General,1217,BEN SHAW TRAINING LIMITED,A0055722, 08/10/2020,OPS0307787,52.50,N,,N,N/A
Pendle Borough Council,Operational Services,Indirect Employee Expenses,Emp : Training : General,1217,BEN SHAW TRAINING LIMITED,A0055722, 01/10/2020,OPS0307681,297.50,N,,N,N/A
Pendle Borough Council,Engineering & Special Projects,Capital Costs,Capital : Payments,CD14,DP STRUCTURES LIMITED,A0056114, 22/10/2020,HED0307970,"3,000.00",N,,N,N/A
Pendle Borough Council,Parks & Recreation Services,Premises Related Expense,Bldgs : R & M : Day To Day,2001,A BINNS & CO,A0057121, 01/10/2020,PCO0307699,300.00,N,,N,N/A
Pendle Borough Council,Parks & Recreation Services,Premises Related Expense,Bldgs : R & M : Day To Day,2001,A BINNS & CO,A0057121, 01/10/2020,PCO0307699,350.00,N,,N,N/A
Pendle Borough Council,Parks & Recreation Services,Premises Related Expense,Bldgs : R & M : Day To Day,2001,A BINNS & CO,A0057121, 01/10/2020,PCO0307699,700.00,N,,N,N/A
Pendle Borough Council,Parks & Recreation Services,Premises Related Expense,Bldgs : R & M : Day To Day,2001,A BINNS & CO,A0057121, 01/10/2020,PCO0307699,800.00,N,,N,N/A
Pendle Borough Council,Parks & Recreation Services,Premises Related Expense,Grounds : R & M : Day to Day : Routine,2101,A BINNS & CO,A0057121, 01/10/2020,PCO0307699,500.00,N,,N,N/A
Pendle Borough Council,Parks & Recreation Services,Premises Related Expense,Grounds : R & M : Day to Day : Routine,2101,A BINNS & CO,A0057121, 01/10/2020,PCO0307699,500.00,N,,N,N/A
Pendle Borough Council,Parks & Recreation Services,Premises Related Expense,Grounds : R & M : Day to Day : Routine,2101,A BINNS & CO,A0057121, 01/10/2020,PCO0307699,500.00,N,,N,N/A
Pendle Borough Council,Parks & Recreation Services,Premises Related Expense,Grounds : R & M : Day to Day : Routine,2101,A BINNS & CO,A0057121, 01/10/2020,PCO0307699,90.00,N,,N,N/A
Pendle Borough Council,Parks & Recreation Services,Premises Related Expense,Grounds : R & M : Day to Day : Routine,2101,A BINNS & CO,A0057121, 01/10/2020,PCO0307699,140.00,N,,N,N/A
Pendle Borough Council,Operational Services,Transport Related Expense,Tprt : Repairs : General,3105,UNITED UTILITIES,A0059246, 08/10/2020,OPS0307833,19.38,N,,N,N/A
Pendle Borough Council,Operational Services,Transport Related Expense,Tprt : Repairs : General,3105,UNITED UTILITIES,A0059246, 08/10/2020,OPS0307833,32.99,N,,N,N/A
Pendle Borough Council,Democratic & Legal Services,Agency Costs,Lancashire C C,5102,NSL LIMITED,A0059256, 22/10/2020,DAL0307940,"1,806.39",N,,N,N/A
Pendle Borough Council,Housing Regeneration Services,Supplies and Services,Adverts : Statutory Notice,4702,JPIMEDIA PUBLISHING LIMITED,A0059640, 08/10/2020,HMR0307843,194.40,N,,N,N/A
Pendle Borough Council,Housing Regeneration Services,Supplies and Services,Adverts : Statutory Notice,4702,JPIMEDIA PUBLISHING LIMITED,A0059640, 15/10/2020,HMR0307882,218.70,N,,N,N/A
Pendle Borough Council,Democratic & Legal Services,Supplies and Services,Adverts : Statutory Notice,4702,JPIMEDIA PUBLISHING LIMITED,A0059640, 22/10/2020,DAL0307946,267.30,N,,N,N/A
Pendle Borough Council,Housing Regeneration Services,Transfer Payments,Accommodation ,6103,HILL VIEW (PRIVATE) HOTEL,A0059754, 29/10/2020,HMR0308147,"12,720.00",N,,N,N/A
Pendle Borough Council,Property Services,Premises Related Expense,Bldgs : R & M : Day To Day,2001,MAXIGIENE ENVIRONMENTAL SERVICES LTD,A0060911, 22/10/2020,EST0308042,25.00,N,,N,N/A
Pendle Borough Council,Property Services,Supplies and Services,Other Expenses,4705,MAXIGIENE ENVIRONMENTAL SERVICES LTD,A0060911, 22/10/2020,EST0307958,175.00,N,,N,N/A
Pendle Borough Council,Property Services,Supplies and Services,Other Expenses,4705,MAXIGIENE ENVIRONMENTAL SERVICES LTD,A0060911, 22/10/2020,EST0308041,745.00,N,,N,N/A
Pendle Borough Council,Operational Services,Supplies and Services,EFM Materials,4004,CONTAINER CARE SOLUTIONS LIMITED,A0061112, 15/10/2020,OPS0307912,"1,700.00",N,,N,N/A
Pendle Borough Council,Democratic & Legal Services,Capital Costs,Capital : Payments,CD14,TRAWDEN FOREST PARISH COUNCIL,A0062286, 22/10/2020,DAL0307947,266.35,N,,N,N/A
Pendle Borough Council,Financial Services,Transport Related Expense,Tprt : Annual Hire Charge,3601,ARVAL LTD (ALLSTAR FUEL SERVICES),A0062668, 15/10/2020,AAS0308059,91.66,N,,N,N/A
Pendle Borough Council,Parks & Recreation Services,Premises Related Expense,Grounds : R & M : Day to Day : Routine,2101,BOUNCEBACK SAFETY SERVICES LTD,A0063002, 08/10/2020,PCO0307762,840.00,N,,N,N/A
Pendle Borough Council,Parks & Recreation Services,Premises Related Expense,Grounds : R & M : Day to Day : Routine,2101,BOUNCEBACK SAFETY SERVICES LTD,A0063002, 08/10/2020,PCO0307761,"1,028.00",N,,N,N/A
Pendle Borough Council,Operational Services,Premises Related Expense,Bldgs : R & M : Day To Day,2001,NORTH WEST TRADING COMPANY,A0063527, 08/10/2020,OPS0307779,105.26,N,,N,N/A
Pendle Borough Council,Democratic & Legal Services,Supplies and Services,Other Expenses,4705,COLNE ROYAL BRITISH LEGION CLUB,A0064455, 22/10/2020,DAL0307939,332.50,N,,N,N/A
Pendle Borough Council,Planning & Building Control,Supplies and Services,Other Expenses,4705,NEW MIND INTERNET CONSULTANCY LTD,A0064687, 29/10/2020,PBC0308116,"2,770.00",N,,N,N/A
Pendle Borough Council,Engineering & Special Projects,Supplies and Services,Publicity & advertisement,4704,EAST LANCASHIRE COMMUNITY ACTION PROJECT (ELCAP L,A0065518, 01/10/2020,HED0307643,700.00,N,,N,N/A
Pendle Borough Council,Property Services,Premises Related Expense,Bldgs : R & M : Day To Day,2001,PAUL WAITE ASSOCIATES LTD,A0066188, 22/10/2020,EST0307966,600.00,N,,N,N/A
Pendle Borough Council,Engineering & Special Projects,Capital Costs,Capital : Payments,CD14,PAUL WAITE ASSOCIATES LTD,A0066188, 08/10/2020,HED0307737,"3,850.00",N,,N,N/A
Pendle Borough Council,Engineering & Special Projects,Capital Costs,Capital : Payments,CD14,PAUL WAITE ASSOCIATES LTD,A0066188, 08/10/2020,HED0307742,"5,650.00",N,,N,N/A
Pendle Borough Council,Planning & Building Control,Supplies and Services,Publicity & advertisement,4704,RIVER GROUP CONTENT LIMITED,A0066194, 08/10/2020,PBC0307753,425.00,N,,N,N/A
Pendle Borough Council,Property Services,Premises Related Expense,Bldgs : R & M : Day To Day,2001,SPEAKMAN CONTRACTORS LTD,A0066581, 22/10/2020,EST0307965,24.50,N,,N,N/A
Pendle Borough Council,Property Services,Premises Related Expense,Bldgs : R & M : Day To Day,2001,SPEAKMAN CONTRACTORS LTD,A0066581, 22/10/2020,EST0307965,60.99,N,,N,N/A
Pendle Borough Council,Property Services,Premises Related Expense,Bldgs : R & M : Day To Day,2001,SPEAKMAN CONTRACTORS LTD,A0066581, 22/10/2020,EST0307965,159.25,N,,N,N/A
Pendle Borough Council,Property Services,Premises Related Expense,Bldgs : R & M : Day To Day,2001,SPEAKMAN CONTRACTORS LTD,A0066581, 22/10/2020,EST0307965,188.64,N,,N,N/A
Pendle Borough Council,Property Services,Premises Related Expense,Bldgs : Vandalism Repairs,2005,SPEAKMAN CONTRACTORS LTD,A0066581, 22/10/2020,EST0307965,252.50,N,,N,N/A
Pendle Borough Council,Property Services,Supplies and Services,EFM : Other Equipment,4003,SPEAKMAN CONTRACTORS LTD,A0066581, 22/10/2020,EST0307965,239.15,N,,N,N/A
Pendle Borough Council,Planning & Building Control,Supplies and Services,Legal Fees,4402,LICENSING MATTERS LIMITED,A0067605, 01/10/2020,PBC0307685,"1,162.50",N,,N,N/A
Pendle Borough Council,Human Resources,Indirect Employee Expenses,Emp : Medical Expenses,1236,PEOPLE ASSET MANAGEMENT LIMITED,A0067613, 08/10/2020,PER0307765,180.00,N,,N,N/A
Pendle Borough Council,Human Resources,Indirect Employee Expenses,Emp : Medical Expenses,1236,PEOPLE ASSET MANAGEMENT LIMITED,A0067613, 29/10/2020,PER0308123,255.00,N,,N,N/A
Pendle Borough Council,Democratic & Legal Services,Supplies and Services,#N/A,4424,CHIPSIDE LTD,A0068587, 22/10/2020,DAL0307952,183.00,N,,N,N/A
Pendle Borough Council,Parks & Recreation Services,Premises Related Expense,Bldgs : R & M : Day To Day,2001,M C & M A STEWART HAULAGE,A0068863, 08/10/2020,PCO0307760,489.40,N,,N,N/A
Pendle Borough Council,Parks & Recreation Services,Premises Related Expense,Grounds : R & M : Day to Day : Routine,2101,M C & M A STEWART HAULAGE,A0068863, 08/10/2020,PCO0307759,492.32,N,,N,N/A
Pendle Borough Council,Financial Services,Premises Related Expense,Electricity,2203,BRITISH GAS BUSINESS,A0069538, 29/10/2020,AAS0308077,16.89,N,,N,N/A
Pendle Borough Council,Financial Services,Premises Related Expense,Electricity,2203,BRITISH GAS BUSINESS,A0069538, 01/10/2020,AAS0307585,21.39,N,,N,N/A
Pendle Borough Council,Financial Services,Premises Related Expense,Electricity,2203,BRITISH GAS BUSINESS,A0069538, 29/10/2020,AAS0308078,35.96,N,,N,N/A
Pendle Borough Council,Financial Services,Premises Related Expense,Electricity,2203,BRITISH GAS BUSINESS,A0069538, 01/10/2020,AAS0307586,50.54,N,,N,N/A
Pendle Borough Council,Financial Services,Premises Related Expense,Electricity,2203,BRITISH GAS BUSINESS,A0069538, 01/10/2020,AAS4006270,-10.85,N,,N,N/A
Pendle Borough Council,Financial Services,Premises Related Expense,Electricity,2203,BRITISH GAS BUSINESS,A0069538, 01/10/2020,AAS4006269,-9.06,N,,N,N/A
Pendle Borough Council,Financial Services,Premises Related Expense,Electricity,2203,BRITISH GAS BUSINESS,A0069538, 01/10/2020,AAS4006265,-8.99,N,,N,N/A
Pendle Borough Council,Financial Services,Premises Related Expense,Electricity,2203,BRITISH GAS BUSINESS,A0069538, 01/10/2020,AAS4006266,-8.99,N,,N,N/A
Pendle Borough Council,Financial Services,Premises Related Expense,Electricity,2203,BRITISH GAS BUSINESS,A0069538, 01/10/2020,AAS4006267,-8.70,N,,N,N/A
Pendle Borough Council,Financial Services,Premises Related Expense,Electricity,2203,BRITISH GAS BUSINESS,A0069538, 01/10/2020,AAS4006268,-8.70,N,,N,N/A
Pendle Borough Council,Financial Services,Premises Related Expense,Electricity,2203,BRITISH GAS BUSINESS,A0069538, 01/10/2020,AAS0307610,8.50,N,,N,N/A
Pendle Borough Council,Financial Services,Premises Related Expense,Electricity,2203,BRITISH GAS BUSINESS,A0069538, 01/10/2020,AAS0307612,8.56,N,,N,N/A
Pendle Borough Council,Financial Services,Premises Related Expense,Electricity,2203,BRITISH GAS BUSINESS,A0069538, 29/10/2020,AAS0308096,8.56,N,,N,N/A
Pendle Borough Council,Financial Services,Premises Related Expense,Electricity,2203,BRITISH GAS BUSINESS,A0069538, 01/10/2020,AAS0307611,8.70,N,,N,N/A
Pendle Borough Council,Financial Services,Premises Related Expense,Electricity,2203,BRITISH GAS BUSINESS,A0069538, 01/10/2020,AAS0307613,8.85,N,,N,N/A
Pendle Borough Council,Financial Services,Premises Related Expense,Electricity,2203,BRITISH GAS BUSINESS,A0069538, 01/10/2020,AAS0307615,8.85,N,,N,N/A
Pendle Borough Council,Financial Services,Premises Related Expense,Electricity,2203,BRITISH GAS BUSINESS,A0069538, 01/10/2020,AAS0307614,9.28,N,,N,N/A
Pendle Borough Council,Financial Services,Premises Related Expense,Electricity,2203,BRITISH GAS BUSINESS,A0069538, 01/10/2020,AAS0307609,10.14,N,,N,N/A
Pendle Borough Council,Financial Services,Premises Related Expense,Electricity,2203,BRITISH GAS BUSINESS,A0069538, 23/10/2020,AAS0308066,11.01,N,,N,N/A
Pendle Borough Council,Financial Services,Premises Related Expense,Electricity,2203,BRITISH GAS BUSINESS,A0069538, 01/10/2020,AAS0307598,17.59,N,,N,N/A
Pendle Borough Council,Financial Services,Premises Related Expense,Electricity,2203,BRITISH GAS BUSINESS,A0069538, 29/10/2020,AAS0308085,25.47,N,,N,N/A
Pendle Borough Council,Financial Services,Premises Related Expense,Electricity,2203,BRITISH GAS BUSINESS,A0069538, 01/10/2020,AAS4006261,-227.70,N,,N,N/A
Pendle Borough Council,Financial Services,Premises Related Expense,Electricity,2203,BRITISH GAS BUSINESS,A0069538, 01/10/2020,AAS4006262,-212.97,N,,N,N/A
Pendle Borough Council,Financial Services,Premises Related Expense,Electricity,2203,BRITISH GAS BUSINESS,A0069538, 01/10/2020,AAS4006263,-133.37,N,,N,N/A
Pendle Borough Council,Financial Services,Premises Related Expense,Electricity,2203,BRITISH GAS BUSINESS,A0069538, 01/10/2020,AAS4006264,-70.96,N,,N,N/A
Pendle Borough Council,Financial Services,Premises Related Expense,Electricity,2203,BRITISH GAS BUSINESS,A0069538, 01/10/2020,AAS0307589,15.24,N,,N,N/A
Pendle Borough Council,Financial Services,Premises Related Expense,Electricity,2203,BRITISH GAS BUSINESS,A0069538, 01/10/2020,AAS0307591,16.21,N,,N,N/A
Pendle Borough Council,Financial Services,Premises Related Expense,Electricity,2203,BRITISH GAS BUSINESS,A0069538, 01/10/2020,AAS0307592,24.38,N,,N,N/A
Pendle Borough Council,Financial Services,Premises Related Expense,Electricity,2203,BRITISH GAS BUSINESS,A0069538, 01/10/2020,AAS0307590,26.14,N,,N,N/A
Pendle Borough Council,Financial Services,Premises Related Expense,Electricity,2203,BRITISH GAS BUSINESS,A0069538, 29/10/2020,AAS0308081,105.61,N,,N,N/A
Pendle Borough Council,Financial Services,Premises Related Expense,Electricity,2203,BRITISH GAS BUSINESS,A0069538, 01/10/2020,AAS0307593,123.54,N,,N,N/A
Pendle Borough Council,Financial Services,Premises Related Expense,Electricity,2203,BRITISH GAS BUSINESS,A0069538, 01/10/2020,AAS0307617,119.49,N,,N,N/A
Pendle Borough Council,Financial Services,Premises Related Expense,Electricity,2203,BRITISH GAS BUSINESS,A0069538, 29/10/2020,AAS0308098,126.30,N,,N,N/A
Pendle Borough Council,Financial Services,Premises Related Expense,Electricity,2203,BRITISH GAS BUSINESS,A0069538, 29/10/2020,AAS0308097,9.14,N,,N,N/A
Pendle Borough Council,Financial Services,Premises Related Expense,Electricity,2203,BRITISH GAS BUSINESS,A0069538, 01/10/2020,AAS0307616,12.05,N,,N,N/A
Pendle Borough Council,Financial Services,Premises Related Expense,Electricity,2203,BRITISH GAS BUSINESS,A0069538, 27/10/2020,AAS0308065,114.80,N,,N,N/A
Pendle Borough Council,Financial Services,Premises Related Expense,Electricity,2203,BRITISH GAS BUSINESS,A0069538, 29/10/2020,AAS0308075,37.33,N,,N,N/A
Pendle Borough Council,Financial Services,Premises Related Expense,Electricity,2203,BRITISH GAS BUSINESS,A0069538, 01/10/2020,AAS0307583,45.91,N,,N,N/A
Pendle Borough Council,Financial Services,Premises Related Expense,Electricity,2203,BRITISH GAS BUSINESS,A0069538, 01/10/2020,AAS0307596,20.75,N,,N,N/A
Pendle Borough Council,Financial Services,Premises Related Expense,Electricity,2203,BRITISH GAS BUSINESS,A0069538, 06/10/2020,AAS0308058,63.76,N,,N,N/A
Pendle Borough Council,Financial Services,Premises Related Expense,Electricity,2203,BRITISH GAS BUSINESS,A0069538, 01/10/2020,AAS0307604,8.85,N,,N,N/A
Pendle Borough Council,Financial Services,Premises Related Expense,Electricity,2203,BRITISH GAS BUSINESS,A0069538, 29/10/2020,AAS0308091,8.85,N,,N,N/A
Pendle Borough Council,Financial Services,Premises Related Expense,Electricity,2203,BRITISH GAS BUSINESS,A0069538, 29/10/2020,AAS0308072,174.57,N,,N,N/A
Pendle Borough Council,Financial Services,Premises Related Expense,Electricity,2203,BRITISH GAS BUSINESS,A0069538, 01/10/2020,AAS0307580,185.57,N,,N,N/A
Pendle Borough Council,Financial Services,Premises Related Expense,Electricity,2203,BRITISH GAS BUSINESS,A0069538, 29/10/2020,AAS0308080,257.18,N,,N,N/A
Pendle Borough Council,Financial Services,Premises Related Expense,Electricity,2203,BRITISH GAS BUSINESS,A0069538, 01/10/2020,AAS0307588,258.47,N,,N,N/A
Pendle Borough Council,Financial Services,Premises Related Expense,Electricity,2203,BRITISH GAS BUSINESS,A0069538, 01/10/2020,AAS0307587,19.45,N,,N,N/A
Pendle Borough Council,Financial Services,Premises Related Expense,Electricity,2203,BRITISH GAS BUSINESS,A0069538, 29/10/2020,AAS0308079,22.08,N,,N,N/A
Pendle Borough Council,Financial Services,Premises Related Expense,Electricity,2203,BRITISH GAS BUSINESS,A0069538, 01/10/2020,AAS0307579,13.21,N,,N,N/A
Pendle Borough Council,Financial Services,Premises Related Expense,Electricity,2203,BRITISH GAS BUSINESS,A0069538, 29/10/2020,AAS0308071,14.03,N,,N,N/A
Pendle Borough Council,Financial Services,Premises Related Expense,Electricity,2203,BRITISH GAS BUSINESS,A0069538, 01/10/2020,AAS0307578,15.80,N,,N,N/A
Pendle Borough Council,Financial Services,Premises Related Expense,Electricity,2203,BRITISH GAS BUSINESS,A0069538, 29/10/2020,AAS0308070,18.12,N,,N,N/A
Pendle Borough Council,Financial Services,Premises Related Expense,Electricity,2203,BRITISH GAS BUSINESS,A0069538, 01/10/2020,AAS0307597,8.85,N,,N,N/A
Pendle Borough Council,Financial Services,Premises Related Expense,Electricity,2203,BRITISH GAS BUSINESS,A0069538, 29/10/2020,AAS0308084,8.85,N,,N,N/A
Pendle Borough Council,Financial Services,Premises Related Expense,Electricity,2203,BRITISH GAS BUSINESS,A0069538, 29/10/2020,AAS0308093,12.82,N,,N,N/A
Pendle Borough Council,Financial Services,Premises Related Expense,Electricity,2203,BRITISH GAS BUSINESS,A0069538, 01/10/2020,AAS0307606,12.96,N,,N,N/A
Pendle Borough Council,Financial Services,Premises Related Expense,Electricity,2203,BRITISH GAS BUSINESS,A0069538, 01/10/2020,AAS0307601,11.22,N,,N,N/A
Pendle Borough Council,Financial Services,Premises Related Expense,Electricity,2203,BRITISH GAS BUSINESS,A0069538, 29/10/2020,AAS0308088,12.56,N,,N,N/A
Pendle Borough Council,Financial Services,Premises Related Expense,Electricity,2203,BRITISH GAS BUSINESS,A0069538, 29/10/2020,AAS0308087,81.74,N,,N,N/A
Pendle Borough Council,Financial Services,Premises Related Expense,Electricity,2203,BRITISH GAS BUSINESS,A0069538, 01/10/2020,AAS0307600,86.39,N,,N,N/A
Pendle Borough Council,Financial Services,Premises Related Expense,Electricity,2203,BRITISH GAS BUSINESS,A0069538, 29/10/2020,AAS0308073,37.60,N,,N,N/A
Pendle Borough Council,Financial Services,Premises Related Expense,Electricity,2203,BRITISH GAS BUSINESS,A0069538, 01/10/2020,AAS0307581,43.73,N,,N,N/A
Pendle Borough Council,Financial Services,Premises Related Expense,Electricity,2203,BRITISH GAS BUSINESS,A0069538, 01/10/2020,AAS0307603,7.88,N,,N,N/A
Pendle Borough Council,Financial Services,Premises Related Expense,Electricity,2203,BRITISH GAS BUSINESS,A0069538, 29/10/2020,AAS0308090,7.88,N,,N,N/A
Pendle Borough Council,Financial Services,Premises Related Expense,Electricity,2203,BRITISH GAS BUSINESS,A0069538, 01/10/2020,AAS0307594,9.88,N,,N,N/A
Pendle Borough Council,Financial Services,Premises Related Expense,Electricity,2203,BRITISH GAS BUSINESS,A0069538, 29/10/2020,AAS0308082,9.88,N,,N,N/A
Pendle Borough Council,Financial Services,Premises Related Expense,Electricity,2203,BRITISH GAS BUSINESS,A0069538, 01/10/2020,AAS0307582,43.59,N,,N,N/A
Pendle Borough Council,Financial Services,Premises Related Expense,Electricity,2203,BRITISH GAS BUSINESS,A0069538, 29/10/2020,AAS0308074,44.82,N,,N,N/A
Pendle Borough Council,Financial Services,Premises Related Expense,Electricity,2203,BRITISH GAS BUSINESS,A0069538, 29/10/2020,AAS0308092,7.96,N,,N,N/A
Pendle Borough Council,Financial Services,Premises Related Expense,Electricity,2203,BRITISH GAS BUSINESS,A0069538, 01/10/2020,AAS0307605,10.19,N,,N,N/A
Pendle Borough Council,Financial Services,Premises Related Expense,Electricity,2203,BRITISH GAS BUSINESS,A0069538, 29/10/2020,AAS0308086,15.40,N,,N,N/A
Pendle Borough Council,Financial Services,Premises Related Expense,Electricity,2203,BRITISH GAS BUSINESS,A0069538, 01/10/2020,AAS0307602,16.21,N,,N,N/A
Pendle Borough Council,Financial Services,Premises Related Expense,Electricity,2203,BRITISH GAS BUSINESS,A0069538, 29/10/2020,AAS0308089,17.84,N,,N,N/A
Pendle Borough Council,Financial Services,Premises Related Expense,Electricity,2203,BRITISH GAS BUSINESS,A0069538, 01/10/2020,AAS0307599,37.06,N,,N,N/A
Pendle Borough Council,Financial Services,Premises Related Expense,Electricity,2203,BRITISH GAS BUSINESS,A0069538, 01/10/2020,AAS0307608,589.32,N,,N,N/A
Pendle Borough Council,Financial Services,Premises Related Expense,Electricity,2203,BRITISH GAS BUSINESS,A0069538, 29/10/2020,AAS0308095,608.51,N,,N,N/A
Pendle Borough Council,Financial Services,Premises Related Expense,Electricity,2203,BRITISH GAS BUSINESS,A0069538, 01/10/2020,AAS0307607,274.18,N,,N,N/A
Pendle Borough Council,Financial Services,Premises Related Expense,Electricity,2203,BRITISH GAS BUSINESS,A0069538, 29/10/2020,AAS0308094,309.55,N,,N,N/A
Pendle Borough Council,Financial Services,Supplies and Services,Other Expenses,4705,BRITISH GAS BUSINESS,A0069538, 01/10/2020,AAS0307595,9.88,N,,N,N/A
Pendle Borough Council,Financial Services,Supplies and Services,Other Expenses,4705,BRITISH GAS BUSINESS,A0069538, 29/10/2020,AAS0308083,9.88,N,,N,N/A
Pendle Borough Council,Financial Services,Supplies and Services,Other Expenses,4705,BRITISH GAS BUSINESS,A0069538, 29/10/2020,AAS0308076,29.42,N,,N,N/A
Pendle Borough Council,Financial Services,Supplies and Services,Other Expenses,4705,BRITISH GAS BUSINESS,A0069538, 01/10/2020,AAS0307584,42.91,N,,N,N/A
Pendle Borough Council,Engineering & Special Projects,Capital Costs,Capital : Payments,CD14,PWA GEO-ENVIRONMENTAL LIMITED,A0069766, 08/10/2020,HED0307736,325.00,N,,N,N/A
Pendle Borough Council,Engineering & Special Projects,Capital Costs,Capital : Payments,CD14,PWA GEO-ENVIRONMENTAL LIMITED,A0069766, 08/10/2020,HED0307743,"1,805.00",N,,N,N/A
Pendle Borough Council,Democratic & Legal Services,Supplies and Services,Insurances,4701,ZURICH INSURANCE,A0070214, 01/10/2020,DAL0307625,293.75,N,,N,N/A
Pendle Borough Council,Operational Services,Capital Costs,Capital : Payments,CD14,CRAEMER UK LIMITED,A0070869, 08/10/2020,OPS0307748,"8,987.50",N,,N,N/A
Pendle Borough Council,Planning & Building Control,Supplies and Services,Publicity & advertisement,4704,BAUER CONSUMER MEDIA LIMITED,A0071011, 08/10/2020,PBC0307756,225.00,N,,N,N/A
Pendle Borough Council,Planning & Building Control,Supplies and Services,Publicity & advertisement,4704,BAUER CONSUMER MEDIA LIMITED,A0071011, 08/10/2020,PBC0307757,225.00,N,,N,N/A
Pendle Borough Council,Financial Services,Supplies and Services,Sub-Contractors,4007,QHS SOLUTIONS LIMITED,A0071912, 01/10/2020,AAS0308056,644.44,N,,N,N/A
Pendle Borough Council,Housing Regeneration Services,Supplies and Services,Tests & Inspection Fees,4409,UNITED UTILITIES WATER PLC,A0072400, 08/10/2020,HMR0307847,139.77,N,,N,N/A
Pendle Borough Council,Housing Regeneration Services,Supplies and Services,Tests & Inspection Fees,4409,UNITED UTILITIES WATER PLC,A0072400, 08/10/2020,HMR0307846,165.50,N,,N,N/A
Pendle Borough Council,Housing Regeneration Services,Supplies and Services,Tests & Inspection Fees,4409,UNITED UTILITIES WATER PLC,A0072400, 08/10/2020,HMR0307845,199.79,N,,N,N/A
Pendle Borough Council,Financial Services,Support Services,Bank Charges,7201,LLOYDS BANK PLC,A0072462, 20/10/2020,AAS0308187,875.10,N,,N,N/A
Pendle Borough Council,Parks & Recreation Services,Transport Related Expense,Tprt : Repairs : General,3105,REACTEC LIMITED,A0072817, 01/10/2020,PCO0307692,283.50,N,,N,N/A
Pendle Borough Council,Financial Services,Indirect Employee Expenses,Recruitment,1221,DBS,A0072958, 19/10/2020,AAS0308060,280.00,N,,N,N/A
Pendle Borough Council,Parks & Recreation Services,Premises Related Expense,Bldgs : R & M : Day To Day,2001,BRAMM,A0073376, 01/10/2020,PCO0307687,50.00,N,,N,N/A
Pendle Borough Council,Housing Regeneration Services,Supplies and Services,Other Expenses,4705,WHITE RIBBON CAMPAIGN LIMITED,A0074346, 22/10/2020,HMR0307979,188.00,N,,N,N/A
Pendle Borough Council,Financial Services,Supplies and Services,Credit card and online charges,4421,LLOYDS BANK CARDNET,A0074460, 13/10/2020,AAS0308188,319.70,N,,N,N/A
Pendle Borough Council,Financial Services,Supplies and Services,Credit card and online charges,4421,LLOYDS BANK CARDNET,A0074460, 13/10/2020,AAS0308189,"1,136.72",N,,N,N/A
Pendle Borough Council,Financial Services,Supplies and Services,Credit card and online charges,4421,LLOYDS BANK CARDNET,A0074460, 13/10/2020,AAS0308190,"1,355.13",N,,N,N/A
Pendle Borough Council,Housing Regeneration Services,Capital Costs,Ren Grant : 1996 Act,CH22,OCEAN BATHROOMS TILES & HEATING LTD,A0075367, 08/10/2020,HMR0307840,220.00,N,,N,
Pendle Borough Council,Housing Regeneration Services,Supplies and Services,Other Expenses,4705,FRED HAMER FUNERAL SVCS - HAVENCARE MGT LTD,A0075504, 08/10/2020,HMR0307837,"1,140.00",N,,N,N/A
Pendle Borough Council,Democratic & Legal Services,Supplies and Services,Printing & Stationery,4301,THOMSON REUTERS PROFESSIONAL UK LIMITED,A0077400, 15/10/2020,DAL0307862,132.50,N,,N,N/A
Pendle Borough Council,Democratic & Legal Services,Supplies and Services,Printing & Stationery,4301,THOMSON REUTERS PROFESSIONAL UK LIMITED,A0077400, 15/10/2020,DAL0307862,132.50,N,,N,N/A
Pendle Borough Council,Democratic & Legal Services,Supplies and Services,Seminars etc All Costs,4601,REDACTED - PERSONAL DATA,A0077487, 08/10/2020,DAL0307727,175.00,N,,N,N/A
Pendle Borough Council,Housing Regeneration Services,Supplies and Services,Other Expenses,4705,QUALITY HOMES (NW) LIMITED,A0081253, 29/10/2020,HMR0308146,340.00,N,,N,N/A
Pendle Borough Council,Housing Regeneration Services,Supplies and Services,Consultants Fees,4401,CALICO ENTERPRISE,A0082574, 08/10/2020,HMR0307746,"4,662.95",N,,N,N/A
Pendle Borough Council,Financial Services,Supplies and Services,Allpay,4422,ALLPAY LIMITED,A0084372, 08/10/2020,AAS0307723,10.00,N,,N,N/A
Pendle Borough Council,Financial Services,Supplies and Services,Allpay,4422,ALLPAY LIMITED,A0084372, 08/10/2020,AAS0307724,10.00,N,,N,N/A
Pendle Borough Council,Financial Services,Supplies and Services,Allpay,4422,ALLPAY LIMITED,A0084372, 08/10/2020,AAS0307721,15.14,N,,N,N/A
Pendle Borough Council,Financial Services,Supplies and Services,Allpay,4422,ALLPAY LIMITED,A0084372, 08/10/2020,AAS0307720,21.89,N,,N,N/A
Pendle Borough Council,Financial Services,Supplies and Services,Allpay,4422,ALLPAY LIMITED,A0084372, 08/10/2020,AAS0307725,70.43,N,,N,N/A
Pendle Borough Council,Financial Services,Supplies and Services,Allpay,4422,ALLPAY LIMITED,A0084372, 08/10/2020,AAS0307722,"2,057.20",N,,N,N/A
Pendle Borough Council,Engineering & Special Projects,,Other Income : Non-VATable,9303,RODNEY CAPSTICK BUILDING MAINTENANCE,A0085112, 01/10/2020,HED0307694,550.00,N,,N,N/A
Pendle Borough Council,Engineering & Special Projects,Premises Related Expense,Grounds : R & M : Day to Day : Routine,2101,KEVIN WILKINSON LANDSCAPES LTD,A0085660, 08/10/2020,HED0307741,589.00,N,,N,N/A
Pendle Borough Council,Planning & Building Control,,Other Income : Non-VATable,9303,REDACTED - PERSONAL DATA,A0086010, 15/10/2020,PBC0307892,438.85,N,,N,N/A
Pendle Borough Council,Housing Regeneration Services,Supplies and Services,Other Expenses,4705,PREMIER PROPERTY MANAGEMENT LIMITED,A0086363, 29/10/2020,HMR0308143,340.00,N,,N,N/A
Pendle Borough Council,Engineering & Special Projects,Premises Related Expense,Grounds : R & M : Day to Day : Routine,2101,MARCHBRIDGE BUILDERS LIMITED,A0087284, 15/10/2020,HED0307919,370.00,N,,N,N/A
Pendle Borough Council,Engineering & Special Projects,Capital Costs,Capital : Payments,CD14,MARCHBRIDGE BUILDERS LIMITED,A0087284, 08/10/2020,HED0307744,"55,082.42",N,,N,N/A
Pendle Borough Council,Engineering & Special Projects,Supplies and Services,Publicity & advertisement,4704,PRINTDESIGNS LIMITED,A0088150, 01/10/2020,HED0307644,191.70,N,,N,N/A
Pendle Borough Council,Engineering & Special Projects,Supplies and Services,Publicity & advertisement,4704,PRINTDESIGNS LIMITED,A0088150, 01/10/2020,HED0307645,225.00,N,,N,N/A
Pendle Borough Council,Financial Services,Supplies and Services,Consultants Fees,4401,AURORA ACCOUNTING SERVICES,A0089134, 22/10/2020,AAS0307933,"2,240.00",N,,N,N/A
Pendle Borough Council,Property Services,,Other Income : VATable,9203,AGE UK LANCASHIRE,A0089644, 15/10/2020,EST0307913,435.82,N,1142294,N,N/A
Pendle Borough Council,Democratic & Legal Services,Supplies and Services,Other Expenses,4705,SOLOPROTECT LIMITED,A0089719, 01/10/2020,DAL0307626,46.48,N,,N,N/A
Pendle Borough Council,Financial Services,Supplies and Services,Subscriptions & Donations,4706,FRC PREPARERS LEVY,A0089976, 22/10/2020,AAS0307937,318.00,N,,N,N/A
Pendle Borough Council,Engineering & Special Projects,Capital Costs,Capital : Payments,CD14,O`CALLAGHAN LIMITED,A0090052, 22/10/2020,HED0307974,"31,935.41",N,,N,N/A
Pendle Borough Council,Property Services,Capital Costs,Capital : Payments,CD14,ROBINSON & LAWLOR LIMITED,A0090107, 15/10/2020,EST0307869,"6,366.00",N,,N,N/A
Pendle Borough Council,Parks & Recreation Services,Premises Related Expense,Grounds : R & M : Day to Day : Routine,2101,REDACTED - PERSONAL DATA,A0090177, 22/10/2020,PCO0308016,250.00,N,,N,N/A
Pendle Borough Council,Parks & Recreation Services,Premises Related Expense,Grounds : R & M : Day to Day : Routine,2101,REDACTED - PERSONAL DATA,A0090177, 22/10/2020,PCO0308016,100.00,N,,N,N/A
Pendle Borough Council,Parks & Recreation Services,Premises Related Expense,Grounds : R & M : Day to Day : Routine,2101,REDACTED - PERSONAL DATA,A0090177, 22/10/2020,PCO0308016,105.00,N,,N,N/A
Pendle Borough Council,Parks & Recreation Services,Premises Related Expense,Grounds : R & M : Day to Day : Routine,2101,REDACTED - PERSONAL DATA,A0090177, 22/10/2020,PCO0308016,115.00,N,,N,N/A
Pendle Borough Council,Parks & Recreation Services,Premises Related Expense,Grounds : R & M : Day to Day : Routine,2101,REDACTED - PERSONAL DATA,A0090177, 22/10/2020,PCO0308016,117.00,N,,N,N/A
Pendle Borough Council,Parks & Recreation Services,Premises Related Expense,Grounds : R & M : Day to Day : Routine,2101,REDACTED - PERSONAL DATA,A0090177, 22/10/2020,PCO0308016,250.00,N,,N,N/A
Pendle Borough Council,Parks & Recreation Services,Premises Related Expense,Grounds : R & M : Day to Day : Routine,2101,REDACTED - PERSONAL DATA,A0090177, 22/10/2020,PCO0308016,275.00,N,,N,N/A
Pendle Borough Council,Parks & Recreation Services,Premises Related Expense,Grounds : R & M : Day to Day : Routine,2101,REDACTED - PERSONAL DATA,A0090177, 22/10/2020,PCO0308016,310.00,N,,N,N/A
Pendle Borough Council,Financial Services,Transport Related Expense,Diesel Oil,3202,FUELMATE LTD,A0090265, 06/10/2020,AAS0308061,33.52,N,,N,N/A
Pendle Borough Council,Financial Services,Transport Related Expense,Diesel Oil,3202,FUELMATE LTD,A0090265, 13/10/2020,AAS0308062,42.33,N,,N,N/A
Pendle Borough Council,Financial Services,Transport Related Expense,Diesel Oil,3202,FUELMATE LTD,A0090265, 06/10/2020,AAS0308061,43.09,N,,N,N/A
Pendle Borough Council,Financial Services,Transport Related Expense,Diesel Oil,3202,FUELMATE LTD,A0090265, 20/10/2020,AAS0308063,47.94,N,,N,N/A
Pendle Borough Council,Financial Services,Transport Related Expense,Diesel Oil,3202,FUELMATE LTD,A0090265, 13/10/2020,AAS0308062,50.52,N,,N,N/A
Pendle Borough Council,Financial Services,Transport Related Expense,Diesel Oil,3202,FUELMATE LTD,A0090265, 06/10/2020,AAS0308061,52.26,N,,N,N/A
Pendle Borough Council,Financial Services,Transport Related Expense,Diesel Oil,3202,FUELMATE LTD,A0090265, 20/10/2020,AAS0308063,56.10,N,,N,N/A
Pendle Borough Council,Financial Services,Transport Related Expense,Diesel Oil,3202,FUELMATE LTD,A0090265, 20/10/2020,AAS0308064,56.57,N,,N,N/A
Pendle Borough Council,Financial Services,Transport Related Expense,Diesel Oil,3202,FUELMATE LTD,A0090265, 20/10/2020,AAS0308063,61.79,N,,N,N/A
Pendle Borough Council,Financial Services,Transport Related Expense,Diesel Oil,3202,FUELMATE LTD,A0090265, 13/10/2020,AAS0308062,65.58,N,,N,N/A
Pendle Borough Council,Financial Services,Transport Related Expense,Diesel Oil,3202,FUELMATE LTD,A0090265, 20/10/2020,AAS0308063,79.92,N,,N,N/A
Pendle Borough Council,Financial Services,Transport Related Expense,Diesel Oil,3202,FUELMATE LTD,A0090265, 20/10/2020,AAS0308064,80.52,N,,N,N/A
Pendle Borough Council,Financial Services,Transport Related Expense,Diesel Oil,3202,FUELMATE LTD,A0090265, 13/10/2020,AAS0308062,80.71,N,,N,N/A
Pendle Borough Council,Financial Services,Transport Related Expense,Diesel Oil,3202,FUELMATE LTD,A0090265, 06/10/2020,AAS0308061,85.62,N,,N,N/A
Pendle Borough Council,Financial Services,Transport Related Expense,Diesel Oil,3202,FUELMATE LTD,A0090265, 13/10/2020,AAS0308062,136.41,N,,N,N/A
Pendle Borough Council,Financial Services,Transport Related Expense,Diesel Oil,3202,FUELMATE LTD,A0090265, 13/10/2020,AAS0308062,205.15,N,,N,N/A
Pendle Borough Council,Financial Services,Transport Related Expense,Diesel Oil,3202,FUELMATE LTD,A0090265, 20/10/2020,AAS0308064,218.63,N,,N,N/A
Pendle Borough Council,Financial Services,Transport Related Expense,Diesel Oil,3202,FUELMATE LTD,A0090265, 06/10/2020,AAS0308061,266.73,N,,N,N/A
Pendle Borough Council,Financial Services,Transport Related Expense,Diesel Oil,3202,FUELMATE LTD,A0090265, 20/10/2020,AAS0308063,294.91,N,,N,N/A
Pendle Borough Council,Financial Services,Transport Related Expense,Diesel Oil,3202,FUELMATE LTD,A0090265, 20/10/2020,AAS0308064,213.65,N,,N,N/A
Pendle Borough Council,Financial Services,Transport Related Expense,Diesel Oil,3202,FUELMATE LTD,A0090265, 13/10/2020,AAS0308062,223.57,N,,N,N/A
Pendle Borough Council,Financial Services,Transport Related Expense,Diesel Oil,3202,FUELMATE LTD,A0090265, 20/10/2020,AAS0308063,234.33,N,,N,N/A
Pendle Borough Council,Financial Services,Transport Related Expense,Diesel Oil,3202,FUELMATE LTD,A0090265, 06/10/2020,AAS0308061,235.45,N,,N,N/A
Pendle Borough Council,Financial Services,Transport Related Expense,Diesel Oil,3202,FUELMATE LTD,A0090265, 20/10/2020,AAS0308063,181.17,N,,N,N/A
Pendle Borough Council,Financial Services,Transport Related Expense,Diesel Oil,3202,FUELMATE LTD,A0090265, 06/10/2020,AAS0308061,198.88,N,,N,N/A
Pendle Borough Council,Financial Services,Transport Related Expense,Diesel Oil,3202,FUELMATE LTD,A0090265, 13/10/2020,AAS0308062,226.34,N,,N,N/A
Pendle Borough Council,Financial Services,Transport Related Expense,Diesel Oil,3202,FUELMATE LTD,A0090265, 20/10/2020,AAS0308064,238.44,N,,N,N/A
Pendle Borough Council,Financial Services,Transport Related Expense,Diesel Oil,3202,FUELMATE LTD,A0090265, 20/10/2020,AAS0308064,163.44,N,,N,N/A
Pendle Borough Council,Financial Services,Transport Related Expense,Diesel Oil,3202,FUELMATE LTD,A0090265, 06/10/2020,AAS0308061,170.80,N,,N,N/A
Pendle Borough Council,Financial Services,Transport Related Expense,Diesel Oil,3202,FUELMATE LTD,A0090265, 13/10/2020,AAS0308062,174.05,N,,N,N/A
Pendle Borough Council,Financial Services,Transport Related Expense,Diesel Oil,3202,FUELMATE LTD,A0090265, 20/10/2020,AAS0308063,261.32,N,,N,N/A
Pendle Borough Council,Financial Services,Transport Related Expense,Diesel Oil,3202,FUELMATE LTD,A0090265, 20/10/2020,AAS0308064,138.14,N,,N,N/A
Pendle Borough Council,Financial Services,Transport Related Expense,Diesel Oil,3202,FUELMATE LTD,A0090265, 20/10/2020,AAS0308063,210.16,N,,N,N/A
Pendle Borough Council,Financial Services,Transport Related Expense,Diesel Oil,3202,FUELMATE LTD,A0090265, 06/10/2020,AAS0308061,212.53,N,,N,N/A
Pendle Borough Council,Financial Services,Transport Related Expense,Diesel Oil,3202,FUELMATE LTD,A0090265, 13/10/2020,AAS0308062,251.74,N,,N,N/A
Pendle Borough Council,Financial Services,Transport Related Expense,Diesel Oil,3202,FUELMATE LTD,A0090265, 13/10/2020,AAS0308062,176.99,N,,N,N/A
Pendle Borough Council,Financial Services,Transport Related Expense,Diesel Oil,3202,FUELMATE LTD,A0090265, 20/10/2020,AAS0308063,208.09,N,,N,N/A
Pendle Borough Council,Financial Services,Transport Related Expense,Diesel Oil,3202,FUELMATE LTD,A0090265, 06/10/2020,AAS0308061,219.89,N,,N,N/A
Pendle Borough Council,Financial Services,Transport Related Expense,Diesel Oil,3202,FUELMATE LTD,A0090265, 20/10/2020,AAS0308064,317.75,N,,N,N/A
Pendle Borough Council,Financial Services,Transport Related Expense,Diesel Oil,3202,FUELMATE LTD,A0090265, 13/10/2020,AAS0308062,47.74,N,,N,N/A
Pendle Borough Council,Financial Services,Transport Related Expense,Diesel Oil,3202,FUELMATE LTD,A0090265, 20/10/2020,AAS0308064,51.87,N,,N,N/A
Pendle Borough Council,Financial Services,Transport Related Expense,Diesel Oil,3202,FUELMATE LTD,A0090265, 20/10/2020,AAS0308064,58.59,N,,N,N/A
Pendle Borough Council,Financial Services,Transport Related Expense,Diesel Oil,3202,FUELMATE LTD,A0090265, 06/10/2020,AAS0308061,92.85,N,,N,N/A
Pendle Borough Council,Financial Services,Transport Related Expense,Diesel Oil,3202,FUELMATE LTD,A0090265, 20/10/2020,AAS0308064,223.95,N,,N,N/A
Pendle Borough Council,Financial Services,Transport Related Expense,Diesel Oil,3202,FUELMATE LTD,A0090265, 13/10/2020,AAS0308062,230.93,N,,N,N/A
Pendle Borough Council,Financial Services,Transport Related Expense,Diesel Oil,3202,FUELMATE LTD,A0090265, 06/10/2020,AAS0308061,235.75,N,,N,N/A
Pendle Borough Council,Financial Services,Transport Related Expense,Diesel Oil,3202,FUELMATE LTD,A0090265, 20/10/2020,AAS0308063,257.67,N,,N,N/A
Pendle Borough Council,Financial Services,Transport Related Expense,Diesel Oil,3202,FUELMATE LTD,A0090265, 13/10/2020,AAS0308062,199.78,N,,N,N/A
Pendle Borough Council,Financial Services,Transport Related Expense,Diesel Oil,3202,FUELMATE LTD,A0090265, 20/10/2020,AAS0308063,224.26,N,,N,N/A
Pendle Borough Council,Financial Services,Transport Related Expense,Diesel Oil,3202,FUELMATE LTD,A0090265, 20/10/2020,AAS0308064,249.64,N,,N,N/A
Pendle Borough Council,Financial Services,Transport Related Expense,Diesel Oil,3202,FUELMATE LTD,A0090265, 06/10/2020,AAS0308061,276.56,N,,N,N/A
Pendle Borough Council,Financial Services,Transport Related Expense,Diesel Oil,3202,FUELMATE LTD,A0090265, 20/10/2020,AAS0308063,175.00,N,,N,N/A
Pendle Borough Council,Financial Services,Transport Related Expense,Diesel Oil,3202,FUELMATE LTD,A0090265, 06/10/2020,AAS0308061,175.08,N,,N,N/A
Pendle Borough Council,Financial Services,Transport Related Expense,Diesel Oil,3202,FUELMATE LTD,A0090265, 13/10/2020,AAS0308062,234.89,N,,N,N/A
Pendle Borough Council,Financial Services,Transport Related Expense,Diesel Oil,3202,FUELMATE LTD,A0090265, 20/10/2020,AAS0308064,251.17,N,,N,N/A
Pendle Borough Council,Financial Services,Transport Related Expense,Diesel Oil,3202,FUELMATE LTD,A0090265, 06/10/2020,AAS0308061,152.75,N,,N,N/A
Pendle Borough Council,Financial Services,Transport Related Expense,Diesel Oil,3202,FUELMATE LTD,A0090265, 20/10/2020,AAS0308063,182.98,N,,N,N/A
Pendle Borough Council,Financial Services,Transport Related Expense,Diesel Oil,3202,FUELMATE LTD,A0090265, 13/10/2020,AAS0308062,218.90,N,,N,N/A
Pendle Borough Council,Financial Services,Transport Related Expense,Diesel Oil,3202,FUELMATE LTD,A0090265, 20/10/2020,AAS0308064,239.11,N,,N,N/A
Pendle Borough Council,Financial Services,Transport Related Expense,Diesel Oil,3202,FUELMATE LTD,A0090265, 20/10/2020,AAS0308063,131.72,N,,N,N/A
Pendle Borough Council,Financial Services,Transport Related Expense,Diesel Oil,3202,FUELMATE LTD,A0090265, 06/10/2020,AAS0308061,175.23,N,,N,N/A
Pendle Borough Council,Financial Services,Transport Related Expense,Diesel Oil,3202,FUELMATE LTD,A0090265, 20/10/2020,AAS0308064,217.06,N,,N,N/A
Pendle Borough Council,Financial Services,Transport Related Expense,Diesel Oil,3202,FUELMATE LTD,A0090265, 13/10/2020,AAS0308062,237.07,N,,N,N/A
Pendle Borough Council,Financial Services,Transport Related Expense,Diesel Oil,3202,FUELMATE LTD,A0090265, 20/10/2020,AAS0308064,188.10,N,,N,N/A
Pendle Borough Council,Financial Services,Transport Related Expense,Diesel Oil,3202,FUELMATE LTD,A0090265, 06/10/2020,AAS0308061,191.74,N,,N,N/A
Pendle Borough Council,Financial Services,Transport Related Expense,Diesel Oil,3202,FUELMATE LTD,A0090265, 20/10/2020,AAS0308063,236.42,N,,N,N/A
Pendle Borough Council,Financial Services,Transport Related Expense,Diesel Oil,3202,FUELMATE LTD,A0090265, 13/10/2020,AAS0308062,238.62,N,,N,N/A
Pendle Borough Council,Financial Services,Transport Related Expense,Diesel Oil,3202,FUELMATE LTD,A0090265, 20/10/2020,AAS0308064,142.38,N,,N,N/A
Pendle Borough Council,Financial Services,Transport Related Expense,Diesel Oil,3202,FUELMATE LTD,A0090265, 13/10/2020,AAS0308062,155.16,N,,N,N/A
Pendle Borough Council,Financial Services,Transport Related Expense,Diesel Oil,3202,FUELMATE LTD,A0090265, 20/10/2020,AAS0308063,156.96,N,,N,N/A
Pendle Borough Council,Financial Services,Transport Related Expense,Diesel Oil,3202,FUELMATE LTD,A0090265, 06/10/2020,AAS0308061,199.35,N,,N,N/A
Pendle Borough Council,Financial Services,Transport Related Expense,Diesel Oil,3202,FUELMATE LTD,A0090265, 13/10/2020,AAS0308062,33.63,N,,N,N/A
Pendle Borough Council,Financial Services,Transport Related Expense,Diesel Oil,3202,FUELMATE LTD,A0090265, 06/10/2020,AAS0308061,34.23,N,,N,N/A
Pendle Borough Council,Financial Services,Transport Related Expense,Diesel Oil,3202,FUELMATE LTD,A0090265, 06/10/2020,AAS0308061,54.52,N,,N,N/A
Pendle Borough Council,Financial Services,Transport Related Expense,Diesel Oil,3202,FUELMATE LTD,A0090265, 20/10/2020,AAS0308063,92.60,N,,N,N/A
Pendle Borough Council,Financial Services,Transport Related Expense,Diesel Oil,3202,FUELMATE LTD,A0090265, 20/10/2020,AAS0308064,137.10,N,,N,N/A
Pendle Borough Council,Financial Services,Transport Related Expense,Diesel Oil,3202,FUELMATE LTD,A0090265, 13/10/2020,AAS0308062,154.45,N,,N,N/A
Pendle Borough Council,Financial Services,Transport Related Expense,Diesel Oil,3202,FUELMATE LTD,A0090265, 06/10/2020,AAS0308061,130.77,N,,N,N/A
Pendle Borough Council,Financial Services,Transport Related Expense,Diesel Oil,3202,FUELMATE LTD,A0090265, 20/10/2020,AAS0308064,131.95,N,,N,N/A
Pendle Borough Council,Financial Services,Transport Related Expense,Diesel Oil,3202,FUELMATE LTD,A0090265, 20/10/2020,AAS0308063,139.78,N,,N,N/A
Pendle Borough Council,Financial Services,Transport Related Expense,Diesel Oil,3202,FUELMATE LTD,A0090265, 13/10/2020,AAS0308062,189.01,N,,N,N/A
Pendle Borough Council,Financial Services,Transport Related Expense,Diesel Oil,3202,FUELMATE LTD,A0090265, 06/10/2020,AAS0308061,131.12,N,,N,N/A
Pendle Borough Council,Financial Services,Transport Related Expense,Diesel Oil,3202,FUELMATE LTD,A0090265, 20/10/2020,AAS0308064,157.24,N,,N,N/A
Pendle Borough Council,Financial Services,Transport Related Expense,Diesel Oil,3202,FUELMATE LTD,A0090265, 13/10/2020,AAS0308062,159.68,N,,N,N/A
Pendle Borough Council,Financial Services,Transport Related Expense,Diesel Oil,3202,FUELMATE LTD,A0090265, 20/10/2020,AAS0308063,160.78,N,,N,N/A
Pendle Borough Council,Financial Services,Transport Related Expense,Diesel Oil,3202,FUELMATE LTD,A0090265, 06/10/2020,AAS0308061,112.33,N,,N,N/A
Pendle Borough Council,Financial Services,Transport Related Expense,Diesel Oil,3202,FUELMATE LTD,A0090265, 20/10/2020,AAS0308063,149.37,N,,N,N/A
Pendle Borough Council,Financial Services,Transport Related Expense,Diesel Oil,3202,FUELMATE LTD,A0090265, 20/10/2020,AAS0308064,164.60,N,,N,N/A
Pendle Borough Council,Financial Services,Transport Related Expense,Diesel Oil,3202,FUELMATE LTD,A0090265, 13/10/2020,AAS0308062,165.26,N,,N,N/A
Pendle Borough Council,Financial Services,Transport Related Expense,Diesel Oil,3202,FUELMATE LTD,A0090265, 20/10/2020,AAS0308063,28.81,N,,N,N/A
Pendle Borough Council,Financial Services,Transport Related Expense,Diesel Oil,3202,FUELMATE LTD,A0090265, 13/10/2020,AAS0308062,102.33,N,,N,N/A
Pendle Borough Council,Financial Services,Transport Related Expense,Diesel Oil,3202,FUELMATE LTD,A0090265, 06/10/2020,AAS0308061,134.44,N,,N,N/A
Pendle Borough Council,Financial Services,Transport Related Expense,Diesel Oil,3202,FUELMATE LTD,A0090265, 20/10/2020,AAS0308064,173.45,N,,N,N/A
Pendle Borough Council,Financial Services,Transport Related Expense,Diesel Oil,3202,FUELMATE LTD,A0090265, 06/10/2020,AAS0308061,75.07,N,,N,N/A
Pendle Borough Council,Financial Services,Transport Related Expense,Diesel Oil,3202,FUELMATE LTD,A0090265, 13/10/2020,AAS0308062,96.53,N,,N,N/A
Pendle Borough Council,Financial Services,Transport Related Expense,Diesel Oil,3202,FUELMATE LTD,A0090265, 20/10/2020,AAS0308063,118.10,N,,N,N/A
Pendle Borough Council,Financial Services,Transport Related Expense,Diesel Oil,3202,FUELMATE LTD,A0090265, 20/10/2020,AAS0308064,120.78,N,,N,N/A
Pendle Borough Council,Financial Services,Transport Related Expense,Diesel Oil,3202,FUELMATE LTD,A0090265, 06/10/2020,AAS0308061,35.74,N,,N,N/A
Pendle Borough Council,Financial Services,Transport Related Expense,Diesel Oil,3202,FUELMATE LTD,A0090265, 06/10/2020,AAS0308061,59.40,N,,N,N/A
Pendle Borough Council,Financial Services,Transport Related Expense,Diesel Oil,3202,FUELMATE LTD,A0090265, 20/10/2020,AAS0308063,60.97,N,,N,N/A
Pendle Borough Council,Financial Services,Transport Related Expense,Diesel Oil,3202,FUELMATE LTD,A0090265, 20/10/2020,AAS0308063,62.23,N,,N,N/A
Pendle Borough Council,Financial Services,Transport Related Expense,Diesel Oil,3202,FUELMATE LTD,A0090265, 13/10/2020,AAS0308062,45.03,N,,N,N/A
Pendle Borough Council,Financial Services,Transport Related Expense,Diesel Oil,3202,FUELMATE LTD,A0090265, 20/10/2020,AAS0308064,46.81,N,,N,N/A
Pendle Borough Council,Financial Services,Transport Related Expense,Diesel Oil,3202,FUELMATE LTD,A0090265, 06/10/2020,AAS0308061,89.72,N,,N,N/A
Pendle Borough Council,Financial Services,Transport Related Expense,Diesel Oil,3202,FUELMATE LTD,A0090265, 20/10/2020,AAS0308063,94.92,N,,N,N/A
Pendle Borough Council,Financial Services,Transport Related Expense,Diesel Oil,3202,FUELMATE LTD,A0090265, 20/10/2020,AAS0308064,40.57,N,,N,N/A
Pendle Borough Council,Financial Services,Transport Related Expense,Diesel Oil,3202,FUELMATE LTD,A0090265, 13/10/2020,AAS0308062,43.56,N,,N,N/A
Pendle Borough Council,Financial Services,Transport Related Expense,Diesel Oil,3202,FUELMATE LTD,A0090265, 20/10/2020,AAS0308063,43.84,N,,N,N/A
Pendle Borough Council,Financial Services,Transport Related Expense,Diesel Oil,3202,FUELMATE LTD,A0090265, 06/10/2020,AAS0308061,78.09,N,,N,N/A
Pendle Borough Council,Financial Services,Transport Related Expense,Diesel Oil,3202,FUELMATE LTD,A0090265, 06/10/2020,AAS0308061,56.69,N,,N,N/A
Pendle Borough Council,Financial Services,Transport Related Expense,Diesel Oil,3202,FUELMATE LTD,A0090265, 13/10/2020,AAS0308062,57.52,N,,N,N/A
Pendle Borough Council,Financial Services,Transport Related Expense,Diesel Oil,3202,FUELMATE LTD,A0090265, 20/10/2020,AAS0308064,62.36,N,,N,N/A
Pendle Borough Council,Financial Services,Transport Related Expense,Diesel Oil,3202,FUELMATE LTD,A0090265, 20/10/2020,AAS0308063,70.94,N,,N,N/A
Pendle Borough Council,Financial Services,Transport Related Expense,Diesel Oil,3202,FUELMATE LTD,A0090265, 20/10/2020,AAS0308063,38.69,N,,N,N/A
Pendle Borough Council,Financial Services,Transport Related Expense,Diesel Oil,3202,FUELMATE LTD,A0090265, 20/10/2020,AAS0308064,44.48,N,,N,N/A
Pendle Borough Council,Financial Services,Transport Related Expense,Diesel Oil,3202,FUELMATE LTD,A0090265, 13/10/2020,AAS0308062,45.41,N,,N,N/A
Pendle Borough Council,Financial Services,Transport Related Expense,Diesel Oil,3202,FUELMATE LTD,A0090265, 06/10/2020,AAS0308061,87.30,N,,N,N/A
Pendle Borough Council,Financial Services,Transport Related Expense,Diesel Oil,3202,FUELMATE LTD,A0090265, 20/10/2020,AAS0308064,36.39,N,,N,N/A
Pendle Borough Council,Financial Services,Transport Related Expense,Diesel Oil,3202,FUELMATE LTD,A0090265, 13/10/2020,AAS0308062,37.73,N,,N,N/A
Pendle Borough Council,Financial Services,Transport Related Expense,Diesel Oil,3202,FUELMATE LTD,A0090265, 20/10/2020,AAS0308063,47.73,N,,N,N/A
Pendle Borough Council,Financial Services,Transport Related Expense,Diesel Oil,3202,FUELMATE LTD,A0090265, 20/10/2020,AAS0308064,31.57,N,,N,N/A
Pendle Borough Council,Financial Services,Transport Related Expense,Diesel Oil,3202,FUELMATE LTD,A0090265, 20/10/2020,AAS0308064,27.26,N,,N,N/A
Pendle Borough Council,Financial Services,Transport Related Expense,Diesel Oil,3202,FUELMATE LTD,A0090265, 20/10/2020,AAS0308063,39.47,N,,N,N/A
Pendle Borough Council,Financial Services,Transport Related Expense,Diesel Oil,3202,FUELMATE LTD,A0090265, 13/10/2020,AAS0308062,32.72,N,,N,N/A
Pendle Borough Council,Financial Services,Transport Related Expense,Diesel Oil,3202,FUELMATE LTD,A0090265, 20/10/2020,AAS0308064,33.52,N,,N,N/A
Pendle Borough Council,Financial Services,Transport Related Expense,Diesel Oil,3202,FUELMATE LTD,A0090265, 13/10/2020,AAS0308062,38.19,N,,N,N/A
Pendle Borough Council,Financial Services,Transport Related Expense,Diesel Oil,3202,FUELMATE LTD,A0090265, 20/10/2020,AAS0308064,103.63,N,,N,N/A
Pendle Borough Council,Financial Services,Transport Related Expense,Diesel Oil,3202,FUELMATE LTD,A0090265, 13/10/2020,AAS0308062,120.92,N,,N,N/A
Pendle Borough Council,Financial Services,Transport Related Expense,Diesel Oil,3202,FUELMATE LTD,A0090265, 20/10/2020,AAS0308063,87.58,N,,N,N/A
Pendle Borough Council,Financial Services,Transport Related Expense,Diesel Oil,3202,FUELMATE LTD,A0090265, 13/10/2020,AAS0308062,27.31,N,,N,N/A
Pendle Borough Council,Financial Services,Transport Related Expense,Diesel Oil,3202,FUELMATE LTD,A0090265, 13/10/2020,AAS0308062,37.34,N,,N,N/A
Pendle Borough Council,Financial Services,Transport Related Expense,Diesel Oil,3202,FUELMATE LTD,A0090265, 06/10/2020,AAS0308061,46.50,N,,N,N/A
Pendle Borough Council,Financial Services,Transport Related Expense,Diesel Oil,3202,FUELMATE LTD,A0090265, 20/10/2020,AAS0308064,49.35,N,,N,N/A
Pendle Borough Council,Financial Services,Transport Related Expense,Diesel Oil,3202,FUELMATE LTD,A0090265, 13/10/2020,AAS0308062,51.81,N,,N,N/A
Pendle Borough Council,Financial Services,Transport Related Expense,Diesel Oil,3202,FUELMATE LTD,A0090265, 20/10/2020,AAS0308063,44.10,N,,N,N/A
Pendle Borough Council,Financial Services,Transport Related Expense,Diesel Oil,3202,FUELMATE LTD,A0090265, 20/10/2020,AAS0308064,48.73,N,,N,N/A
Pendle Borough Council,Financial Services,Transport Related Expense,Diesel Oil,3202,FUELMATE LTD,A0090265, 06/10/2020,AAS0308061,49.17,N,,N,N/A
Pendle Borough Council,Financial Services,Transport Related Expense,Diesel Oil,3202,FUELMATE LTD,A0090265, 13/10/2020,AAS0308062,47.97,N,,N,N/A
Pendle Borough Council,Financial Services,Transport Related Expense,Diesel Oil,3202,FUELMATE LTD,A0090265, 20/10/2020,AAS0308064,50.79,N,,N,N/A
Pendle Borough Council,Financial Services,Transport Related Expense,Diesel Oil,3202,FUELMATE LTD,A0090265, 06/10/2020,AAS0308061,101.11,N,,N,N/A
Pendle Borough Council,Financial Services,Transport Related Expense,Diesel Oil,3202,FUELMATE LTD,A0090265, 20/10/2020,AAS0308063,46.23,N,,N,N/A
Pendle Borough Council,Financial Services,Transport Related Expense,Diesel Oil,3202,FUELMATE LTD,A0090265, 06/10/2020,AAS0308061,48.02,N,,N,N/A
Pendle Borough Council,Financial Services,Transport Related Expense,Diesel Oil,3202,FUELMATE LTD,A0090265, 20/10/2020,AAS0308064,48.69,N,,N,N/A
Pendle Borough Council,Financial Services,Transport Related Expense,Diesel Oil,3202,FUELMATE LTD,A0090265, 20/10/2020,AAS0308064,48.89,N,,N,N/A
Pendle Borough Council,Financial Services,Transport Related Expense,Diesel Oil,3202,FUELMATE LTD,A0090265, 06/10/2020,AAS0308061,50.15,N,,N,N/A
Pendle Borough Council,Financial Services,Transport Related Expense,Diesel Oil,3202,FUELMATE LTD,A0090265, 20/10/2020,AAS0308063,47.61,N,,N,N/A
Pendle Borough Council,Financial Services,Transport Related Expense,Diesel Oil,3202,FUELMATE LTD,A0090265, 06/10/2020,AAS0308061,52.53,N,,N,N/A
Pendle Borough Council,Financial Services,Transport Related Expense,Diesel Oil,3202,FUELMATE LTD,A0090265, 20/10/2020,AAS0308064,46.98,N,,N,N/A
Pendle Borough Council,Financial Services,Transport Related Expense,Diesel Oil,3202,FUELMATE LTD,A0090265, 06/10/2020,AAS0308061,49.74,N,,N,N/A
Pendle Borough Council,Financial Services,Transport Related Expense,Diesel Oil,3202,FUELMATE LTD,A0090265, 06/10/2020,AAS0308061,34.14,N,,N,N/A
Pendle Borough Council,Financial Services,Transport Related Expense,Diesel Oil,3202,FUELMATE LTD,A0090265, 20/10/2020,AAS0308064,34.99,N,,N,N/A
Pendle Borough Council,Operational Services,Supplies and Services,Other Expenses,4705,BARNOLDSWICK TOWN COUNCIL,A0090352, 22/10/2020,OPS0308007,72.79,N,,N,N/A
Pendle Borough Council,Operational Services,Supplies and Services,Other Expenses,4705,BARNOLDSWICK TOWN COUNCIL,A0090352, 22/10/2020,OPS0308007,765.43,N,,N,N/A
Pendle Borough Council,Engineering & Special Projects,Premises Related Expense,Grounds : R & M : Day to Day : Routine,2101,GREEN CLEAN RESTORATION,A0090368, 15/10/2020,HED0307904,187.50,N,,N,N/A
Pendle Borough Council,Engineering & Special Projects,Premises Related Expense,Grounds : R & M : Day to Day : Routine,2101,GREEN CLEAN RESTORATION,A0090368, 15/10/2020,HED0307905,505.00,N,,N,N/A
Pendle Borough Council,Engineering & Special Projects,Premises Related Expense,Grounds : R & M : Day to Day : Routine,2101,GREEN CLEAN RESTORATION,A0090368, 15/10/2020,HED0307904,949.00,N,,N,N/A
Pendle Borough Council,Engineering & Special Projects,Premises Related Expense,Grounds : R & M : Day to Day : Routine,2101,GREEN CLEAN RESTORATION,A0090368, 15/10/2020,HED0307904,500.00,N,,N,N/A
Pendle Borough Council,Operational Services,Premises Related Expense,Water & Sewerage,2501,AQUAM WATER SERVICES LIMITED,A0090390, 08/10/2020,OPS0307832,1.39,N,,N,N/A
Pendle Borough Council,Parks & Recreation Services,Premises Related Expense,Grounds : R & M : Day to Day : Routine,2101,STILLWATER MANAGEMENT,A0090448, 29/10/2020,PCO0308122,590.00,N,,N,N/A
Pendle Borough Council,Parks & Recreation Services,Premises Related Expense,Grounds : R & M : Day to Day : Routine,2101,STILLWATER MANAGEMENT,A0090448, 29/10/2020,PCO0308122,"1,190.00",N,,N,N/A
Pendle Borough Council,Financial Services,Supplies and Services,Newspapers & Periodicals,4305,LANCASHIRE BUSINESS VIEW,A0090521, 01/10/2020,AAS0308055,2.50,N,,N,N/A
Pendle Borough Council,Information Services,Capital Costs,Capital : Payments,cd14,IDOX SOFTWARE LIMITED,A0090564, 22/10/2020,ITS0308046,"1,900.00",N,,N,N/A
Pendle Borough Council,Information Services,Capital Costs,Capital : Payments,cd14,IDOX SOFTWARE LIMITED,A0090564, 22/10/2020,ITS0307997,"6,270.00",N,,N,N/A
Pendle Borough Council,Information Services,Capital Costs,Capital : Payments,cd14,IDOX SOFTWARE LIMITED,A0090564, 22/10/2020,ITS0308047,"6,840.00",N,,N,N/A
Pendle Borough Council,Parks & Recreation Services,Transport Related Expense,Tprt : Repairs : General,3105,SUPER AUTO SAVER,A0090951, 15/10/2020,PCO0307900,62.50,N,,N,N/A
Pendle Borough Council,Operational Services,Agency Staff,Emp : Training : Courses,1013,MALLARD CONSULTANCY LIMITED,A0091047, 08/10/2020,OPS0307773,495.00,N,,N,N/A
Pendle Borough Council,Operational Services,Supplies and Services,Other Expenses,4705,MALLARD CONSULTANCY LIMITED,A0091047, 08/10/2020,OPS0307773,495.00,N,,N,N/A
Pendle Borough Council,Engineering & Special Projects,Premises Related Expense,Grounds : R & M : Day to Day : Routine,2101,ANDREW TIPPING S & A PHOTOGRAPHY,A0091064, 08/10/2020,HED0307734,150.00,N,,N,N/A
Pendle Borough Council,Information Services,Supplies and Services,Computer Charges,4509,SOFTCAT,A0091298, 22/10/2020,ITS0307999,"1,957.00",N,,N,N/A
Pendle Borough Council,Operational Services,Transport Related Expense,Tprt : Repairs : General,3105,QUARTIX LIMITED,A0091353, 22/10/2020,OPS0308053,41.70,N,,N,N/A
Pendle Borough Council,Operational Services,Transport Related Expense,Tprt : Repairs : General,3105,QUARTIX LIMITED,A0091353, 22/10/2020,OPS0308053,41.70,N,,N,N/A
Pendle Borough Council,Operational Services,Transport Related Expense,Tprt : Repairs : General,3105,QUARTIX LIMITED,A0091353, 22/10/2020,OPS0308053,41.70,N,,N,N/A
Pendle Borough Council,Operational Services,Transport Related Expense,Tprt : Repairs : General,3105,QUARTIX LIMITED,A0091353, 22/10/2020,OPS0308053,41.70,N,,N,N/A
Pendle Borough Council,Operational Services,Transport Related Expense,Tprt : Repairs : General,3105,QUARTIX LIMITED,A0091353, 22/10/2020,OPS0308053,41.70,N,,N,N/A
Pendle Borough Council,Operational Services,Transport Related Expense,Tprt : Repairs : General,3105,QUARTIX LIMITED,A0091353, 22/10/2020,OPS0308053,41.70,N,,N,N/A
Pendle Borough Council,Operational Services,Transport Related Expense,Tprt : Repairs : General,3105,QUARTIX LIMITED,A0091353, 22/10/2020,OPS0308053,41.70,N,,N,N/A
Pendle Borough Council,Operational Services,Transport Related Expense,Tprt : Repairs : General,3105,QUARTIX LIMITED,A0091353, 22/10/2020,OPS0308053,41.70,N,,N,N/A
Pendle Borough Council,Operational Services,Transport Related Expense,Tprt : Repairs : General,3105,QUARTIX LIMITED,A0091353, 22/10/2020,OPS0308053,41.70,N,,N,N/A
Pendle Borough Council,Operational Services,Transport Related Expense,Tprt : Repairs : General,3105,QUARTIX LIMITED,A0091353, 22/10/2020,OPS0308053,41.70,N,,N,N/A
Pendle Borough Council,Operational Services,Transport Related Expense,Tprt : Repairs : General,3105,QUARTIX LIMITED,A0091353, 22/10/2020,OPS0308053,41.70,N,,N,N/A
Pendle Borough Council,Operational Services,Transport Related Expense,Tprt : Repairs : General,3105,QUARTIX LIMITED,A0091353, 22/10/2020,OPS0308053,41.70,N,,N,N/A
Pendle Borough Council,Operational Services,Transport Related Expense,Tprt : Repairs : General,3105,QUARTIX LIMITED,A0091353, 22/10/2020,OPS0308053,41.70,N,,N,N/A
Pendle Borough Council,Operational Services,Transport Related Expense,Tprt : Repairs : General,3105,QUARTIX LIMITED,A0091353, 22/10/2020,OPS0308053,41.70,N,,N,N/A
Pendle Borough Council,Operational Services,Transport Related Expense,Tprt : Repairs : General,3105,QUARTIX LIMITED,A0091353, 22/10/2020,OPS0308053,41.70,N,,N,N/A
Pendle Borough Council,Operational Services,Transport Related Expense,Tprt : Repairs : General,3105,QUARTIX LIMITED,A0091353, 22/10/2020,OPS0308053,41.70,N,,N,N/A
Pendle Borough Council,Operational Services,Transport Related Expense,Tprt : Repairs : General,3105,QUARTIX LIMITED,A0091353, 22/10/2020,OPS0308053,41.70,N,,N,N/A
Pendle Borough Council,Democratic & Legal Services,Capital Costs,Ren Grant : 1996 Act,CH22,THE EXCELLENT RAMP SYSTEM LIMITED,A0091363, 01/10/2020,DAL0307629,"3,800.00",N,,N,
Pendle Borough Council,Operational Services,Supplies and Services,Sub-Contractors,4007,PERMISERV LIMITED,A0091396, 29/10/2020,OPS0308108,146.40,N,,N,N/A
Pendle Borough Council,Operational Services,Supplies and Services,Sub-Contractors,4007,PERMISERV LIMITED,A0091396, 01/10/2020,OPS0307698,252.88,N,,N,N/A
Pendle Borough Council,Information Services,Supplies and Services,EFM : Other Equipment,4003,STORM TECHNOLOGIES LIMITED,A0091493, 22/10/2020,ITS0308044,91.98,N,,N,N/A
Pendle Borough Council,Information Services,Supplies and Services,EFM : Other Equipment,4003,STORM TECHNOLOGIES LIMITED,A0091493, 22/10/2020,ITS0307995,159.98,N,,N,N/A
Pendle Borough Council,Information Services,Supplies and Services,Other Expenses,4705,STORM TECHNOLOGIES LIMITED,A0091493, 22/10/2020,ITS0307998,109.99,N,,N,N/A
Pendle Borough Council,Information Services,Capital Costs,Capital : Payments,CD14,STORM TECHNOLOGIES LIMITED,A0091493, 22/10/2020,ITS0308045,6.99,N,,N,N/A
Pendle Borough Council,Information Services,Capital Costs,Capital : Payments,CD14,STORM TECHNOLOGIES LIMITED,A0091493, 22/10/2020,ITS0307994,316.66,N,,N,N/A
Pendle Borough Council,Information Services,Capital Costs,Capital : Payments,CD14,STORM TECHNOLOGIES LIMITED,A0091493, 22/10/2020,ITS0308048,342.36,N,,N,N/A
Pendle Borough Council,Information Services,Capital Costs,Capital : Payments,CD14,STORM TECHNOLOGIES LIMITED,A0091493, 22/10/2020,ITS0307994,495.88,N,,N,N/A
Pendle Borough Council,Information Services,Capital Costs,Capital : Payments,CD14,STORM TECHNOLOGIES LIMITED,A0091493, 22/10/2020,ITS0307994,846.10,N,,N,N/A
Pendle Borough Council,Information Services,Capital Costs,Capital : Payments,CD14,STORM TECHNOLOGIES LIMITED,A0091493, 22/10/2020,ITS0307994,"9,575.76",N,,N,N/A
Pendle Borough Council,Property Services,,Other Income : VATable,9203,LANCASHIRE COUNTY COUNCIL,A0091535, 15/10/2020,EST0307914,238.23,N,,N,N/A
Pendle Borough Council,Planning & Building Control,,Fees Income : Non-VATable,9302,PORTALPLANQUEST LIMITED,A0091554, 15/10/2020,PBC0307890,132.00,N,,N,N/A
Pendle Borough Council,Planning & Building Control,,Fees Income : Non-VATable,9302,PORTALPLANQUEST LIMITED,A0091554, 29/10/2020,PBC0308115,206.00,N,,N,N/A
Pendle Borough Council,Planning & Building Control,,Fees Income : Non-VATable,9302,PORTALPLANQUEST LIMITED,A0091554, 01/10/2020,PBC0307683,234.00,N,,N,N/A
Pendle Borough Council,Planning & Building Control,,Fees Income : Non-VATable,9302,PORTALPLANQUEST LIMITED,A0091554, 01/10/2020,PBC0307684,462.00,N,,N,N/A
Pendle Borough Council,Operational Services,Agency Staff,Emp : Agency Wages,1004,NW RECRUITMENT SERVICES LIMITED,A0091588, 29/10/2020,OPS0308113,"3,060.49",N,,N,N/A
Pendle Borough Council,Operational Services,Agency Staff,Emp : Agency Wages,1004,NW RECRUITMENT SERVICES LIMITED,A0091588, 01/10/2020,OPS0307673,"3,138.37",N,,N,N/A
Pendle Borough Council,Operational Services,Agency Staff,Emp : Agency Wages,1004,NW RECRUITMENT SERVICES LIMITED,A0091588, 29/10/2020,OPS0308111,"3,894.17",N,,N,N/A
Pendle Borough Council,Operational Services,Agency Staff,Emp : Agency Wages,1004,NW RECRUITMENT SERVICES LIMITED,A0091588, 29/10/2020,OPS0308112,"4,234.20",N,,N,N/A
Pendle Borough Council,Operational Services,Agency Staff,Emp : Agency Wages,1004,NW RECRUITMENT SERVICES LIMITED,A0091588, 29/10/2020,OPS0308111,"1,426.16",N,,N,N/A
Pendle Borough Council,Operational Services,Agency Staff,Emp : Agency Wages,1004,NW RECRUITMENT SERVICES LIMITED,A0091588, 29/10/2020,OPS0308113,"2,258.78",N,,N,N/A
Pendle Borough Council,Operational Services,Agency Staff,Emp : Agency Wages,1004,NW RECRUITMENT SERVICES LIMITED,A0091588, 29/10/2020,OPS0308112,"2,320.08",N,,N,N/A
Pendle Borough Council,Operational Services,Agency Staff,Emp : Agency Wages,1004,NW RECRUITMENT SERVICES LIMITED,A0091588, 01/10/2020,OPS0307673,"2,358.47",N,,N,N/A
Pendle Borough Council,Operational Services,Agency Staff,Emp : Agency Wages,1004,NW RECRUITMENT SERVICES LIMITED,A0091588, 29/10/2020,OPS0308112,"1,604.92",N,,N,N/A
Pendle Borough Council,Operational Services,Agency Staff,Emp : Agency Wages,1004,NW RECRUITMENT SERVICES LIMITED,A0091588, 29/10/2020,OPS0308111,"1,911.93",N,,N,N/A
Pendle Borough Council,Operational Services,Agency Staff,Emp : Agency Wages,1004,NW RECRUITMENT SERVICES LIMITED,A0091588, 01/10/2020,OPS0307673,"1,996.74",N,,N,N/A
Pendle Borough Council,Operational Services,Agency Staff,Emp : Agency Wages,1004,NW RECRUITMENT SERVICES LIMITED,A0091588, 29/10/2020,OPS0308113,"2,170.56",N,,N,N/A
Pendle Borough Council,Operational Services,Agency Staff,Emp : Salaries & Wages,1020,NW RECRUITMENT SERVICES LIMITED,A0091588, 08/10/2020,OPS0307775,197.46,N,,N,N/A
Pendle Borough Council,Parks & Recreation Services,Agency Staff,Emp : Salaries & Wages,1020,NW RECRUITMENT SERVICES LIMITED,A0091588, 01/10/2020,PCO0307686,200.20,N,,N,N/A
Pendle Borough Council,Parks & Recreation Services,Agency Staff,Emp : Salaries & Wages,1020,NW RECRUITMENT SERVICES LIMITED,A0091588, 29/10/2020,PCO0308119,208.43,N,,N,N/A
Pendle Borough Council,Parks & Recreation Services,Agency Staff,Emp : Salaries & Wages,1020,NW RECRUITMENT SERVICES LIMITED,A0091588, 22/10/2020,PCO0308014,209.69,N,,N,N/A
Pendle Borough Council,Parks & Recreation Services,Agency Staff,Emp : Salaries & Wages,1020,NW RECRUITMENT SERVICES LIMITED,A0091588, 15/10/2020,PCO0307896,211.17,N,,N,N/A
Pendle Borough Council,Operational Services,Agency Staff,Emp : Salaries & Wages,1020,NW RECRUITMENT SERVICES LIMITED,A0091588, 08/10/2020,OPS0307774,235.86,N,,N,N/A
Pendle Borough Council,Financial Services,Supplies and Services,Seminars etc All Costs,4601,LA DIRECTORIES LIMITED,A0091596, 01/10/2020,AAS0307573,895.00,N,,N,N/A
Pendle Borough Council,Operational Services,Transport Related Expense,Tprt : Repairs : General,3105,GO PLANT FLEET SERVICES LIMITED,A0091600, 29/10/2020,OPS0308159,29.95,N,,N,N/A
Pendle Borough Council,Operational Services,Transport Related Expense,Tprt : Repairs : General,3105,GO PLANT FLEET SERVICES LIMITED,A0091600, 29/10/2020,OPS0308155,54.08,N,,N,N/A
Pendle Borough Council,Operational Services,Transport Related Expense,Tprt : Repairs : General,3105,GO PLANT FLEET SERVICES LIMITED,A0091600, 01/10/2020,OPS0307659,149.05,N,,N,N/A
Pendle Borough Council,Operational Services,Transport Related Expense,Tprt : Repairs : General,3105,GO PLANT FLEET SERVICES LIMITED,A0091600, 01/10/2020,OPS0307653,269.12,N,,N,N/A
Pendle Borough Council,Operational Services,Transport Related Expense,Tprt : Repairs : General,3105,GO PLANT FLEET SERVICES LIMITED,A0091600, 29/10/2020,OPS0308161,375.53,N,,N,N/A
Pendle Borough Council,Operational Services,Transport Related Expense,Tprt : Repairs : General,3105,GO PLANT FLEET SERVICES LIMITED,A0091600, 01/10/2020,OPS0307658,181.93,N,,N,N/A
Pendle Borough Council,Operational Services,Transport Related Expense,Tprt : Repairs : General,3105,GO PLANT FLEET SERVICES LIMITED,A0091600, 01/10/2020,OPS0307665,271.85,N,,N,N/A
Pendle Borough Council,Operational Services,Transport Related Expense,Tprt : Repairs : General,3105,GO PLANT FLEET SERVICES LIMITED,A0091600, 01/10/2020,OPS0307669,39.80,N,,N,N/A
Pendle Borough Council,Operational Services,Transport Related Expense,Tprt : Repairs : General,3105,GO PLANT FLEET SERVICES LIMITED,A0091600, 29/10/2020,OPS0308168,197.52,N,,N,N/A
Pendle Borough Council,Operational Services,Transport Related Expense,Tprt : Repairs : General,3105,GO PLANT FLEET SERVICES LIMITED,A0091600, 29/10/2020,OPS0308171,198.54,N,,N,N/A
Pendle Borough Council,Operational Services,Transport Related Expense,Tprt : Repairs : General,3105,GO PLANT FLEET SERVICES LIMITED,A0091600, 01/10/2020,OPS0307660,168.95,N,,N,N/A
Pendle Borough Council,Operational Services,Transport Related Expense,Tprt : Repairs : General,3105,GO PLANT FLEET SERVICES LIMITED,A0091600, 29/10/2020,OPS0308167,176.34,N,,N,N/A
Pendle Borough Council,Operational Services,Transport Related Expense,Tprt : Repairs : General,3105,GO PLANT FLEET SERVICES LIMITED,A0091600, 29/10/2020,OPS0308172,242.56,N,,N,N/A
Pendle Borough Council,Operational Services,Transport Related Expense,Tprt : Repairs : General,3105,GO PLANT FLEET SERVICES LIMITED,A0091600, 01/10/2020,OPS0307667,150.56,N,,N,N/A
Pendle Borough Council,Operational Services,Transport Related Expense,Tprt : Repairs : General,3105,GO PLANT FLEET SERVICES LIMITED,A0091600, 29/10/2020,OPS0308166,55.64,N,,N,N/A
Pendle Borough Council,Operational Services,Transport Related Expense,Tprt : Repairs : General,3105,GO PLANT FLEET SERVICES LIMITED,A0091600, 29/10/2020,OPS0308158,854.32,N,,N,N/A
Pendle Borough Council,Operational Services,Transport Related Expense,Tprt : Repairs : General,3105,GO PLANT FLEET SERVICES LIMITED,A0091600, 01/10/2020,OPS0307661,156.39,N,,N,N/A
Pendle Borough Council,Operational Services,Transport Related Expense,Tprt : Repairs : General,3105,GO PLANT FLEET SERVICES LIMITED,A0091600, 01/10/2020,OPS0307662,156.39,N,,N,N/A
Pendle Borough Council,Operational Services,Transport Related Expense,Tprt : Repairs : General,3105,GO PLANT FLEET SERVICES LIMITED,A0091600, 29/10/2020,OPS0308153,54.06,N,,N,N/A
Pendle Borough Council,Operational Services,Transport Related Expense,Tprt : Repairs : General,3105,GO PLANT FLEET SERVICES LIMITED,A0091600, 29/10/2020,OPS0308164,61.90,N,,N,N/A
Pendle Borough Council,Operational Services,Transport Related Expense,Tprt : Repairs : General,3105,GO PLANT FLEET SERVICES LIMITED,A0091600, 29/10/2020,OPS0308161,39.80,N,,N,N/A
Pendle Borough Council,Operational Services,Transport Related Expense,Tprt : Repairs : General,3105,GO PLANT FLEET SERVICES LIMITED,A0091600, 29/10/2020,OPS0308156,54.06,N,,N,N/A
Pendle Borough Council,Operational Services,Transport Related Expense,Tprt : Repairs : General,3105,GO PLANT FLEET SERVICES LIMITED,A0091600, 01/10/2020,OPS0307663,156.39,N,,N,N/A
Pendle Borough Council,Operational Services,Transport Related Expense,Tprt : Repairs : General,3105,GO PLANT FLEET SERVICES LIMITED,A0091600, 29/10/2020,OPS0308160,183.93,N,,N,N/A
Pendle Borough Council,Operational Services,Transport Related Expense,Tprt : Repairs : General,3105,GO PLANT FLEET SERVICES LIMITED,A0091600, 01/10/2020,OPS0307664,156.39,N,,N,N/A
Pendle Borough Council,Operational Services,Transport Related Expense,Tprt : Repairs : General,3105,GO PLANT FLEET SERVICES LIMITED,A0091600, 01/10/2020,OPS0307657,201.59,N,,N,N/A
Pendle Borough Council,Operational Services,Transport Related Expense,Tprt : Repairs : General,3105,GO PLANT FLEET SERVICES LIMITED,A0091600, 29/10/2020,OPS0308174,141.80,N,,N,N/A
Pendle Borough Council,Operational Services,Transport Related Expense,Tprt : Repairs : General,3105,GO PLANT FLEET SERVICES LIMITED,A0091600, 29/10/2020,OPS0308170,71.44,N,,N,N/A
Pendle Borough Council,Operational Services,Transport Related Expense,Tprt : Repairs : General,3105,GO PLANT FLEET SERVICES LIMITED,A0091600, 29/10/2020,OPS0308150,157.90,N,,N,N/A
Pendle Borough Council,Operational Services,Transport Related Expense,Tyres,3204,GO PLANT FLEET SERVICES LIMITED,A0091600, 29/10/2020,OPS0308152,291.30,N,,N,N/A
Pendle Borough Council,Operational Services,Transport Related Expense,Tyres,3204,GO PLANT FLEET SERVICES LIMITED,A0091600, 29/10/2020,OPS0308163,291.30,N,,N,N/A
Pendle Borough Council,Operational Services,Transport Related Expense,Tyres,3204,GO PLANT FLEET SERVICES LIMITED,A0091600, 29/10/2020,OPS0308162,568.80,N,,N,N/A
Pendle Borough Council,Operational Services,Transport Related Expense,Tyres,3204,GO PLANT FLEET SERVICES LIMITED,A0091600, 01/10/2020,OPS0307695,253.69,N,,N,N/A
Pendle Borough Council,Operational Services,Transport Related Expense,Tyres,3204,GO PLANT FLEET SERVICES LIMITED,A0091600, 01/10/2020,OPS0307668,253.69,N,,N,N/A
Pendle Borough Council,Operational Services,Transport Related Expense,Tyres,3204,GO PLANT FLEET SERVICES LIMITED,A0091600, 01/10/2020,OPS0307650,271.40,N,,N,N/A
Pendle Borough Council,Operational Services,Transport Related Expense,Tyres,3204,GO PLANT FLEET SERVICES LIMITED,A0091600, 01/10/2020,OPS0307654,108.16,N,,N,N/A
Pendle Borough Council,Operational Services,Transport Related Expense,Tyres,3204,GO PLANT FLEET SERVICES LIMITED,A0091600, 01/10/2020,OPS0307670,108.16,N,,N,N/A
Pendle Borough Council,Operational Services,Transport Related Expense,Tyres,3204,GO PLANT FLEET SERVICES LIMITED,A0091600, 01/10/2020,OPS0307656,108.16,N,,N,N/A
Pendle Borough Council,Operational Services,Transport Related Expense,Tyres,3204,GO PLANT FLEET SERVICES LIMITED,A0091600, 01/10/2020,OPS0307671,108.16,N,,N,N/A
Pendle Borough Council,Operational Services,Transport Related Expense,Tyres,3204,GO PLANT FLEET SERVICES LIMITED,A0091600, 29/10/2020,OPS0308169,108.16,N,,N,N/A
Pendle Borough Council,Operational Services,Transport Related Expense,Tyres,3204,GO PLANT FLEET SERVICES LIMITED,A0091600, 01/10/2020,OPS0307666,216.22,N,,N,N/A
Pendle Borough Council,Operational Services,Transport Related Expense,Tyres,3204,GO PLANT FLEET SERVICES LIMITED,A0091600, 29/10/2020,OPS0308154,108.16,N,,N,N/A
Pendle Borough Council,Operational Services,Transport Related Expense,Tyres,3204,GO PLANT FLEET SERVICES LIMITED,A0091600, 29/10/2020,OPS0308157,108.16,N,,N,N/A
Pendle Borough Council,Operational Services,Transport Related Expense,Tyres,3204,GO PLANT FLEET SERVICES LIMITED,A0091600, 01/10/2020,OPS0307652,99.48,N,,N,N/A
Pendle Borough Council,Operational Services,Transport Related Expense,Tyres,3204,GO PLANT FLEET SERVICES LIMITED,A0091600, 29/10/2020,OPS0308165,109.13,N,,N,N/A
Pendle Borough Council,Operational Services,Transport Related Expense,Tyres,3204,GO PLANT FLEET SERVICES LIMITED,A0091600, 01/10/2020,OPS0307672,104.08,N,,N,N/A
Pendle Borough Council,Operational Services,Transport Related Expense,Tyres,3204,GO PLANT FLEET SERVICES LIMITED,A0091600, 29/10/2020,OPS0308173,114.03,N,,N,N/A
Pendle Borough Council,Operational Services,Transport Related Expense,Tyres,3204,GO PLANT FLEET SERVICES LIMITED,A0091600, 01/10/2020,OPS0307651,32.09,N,,N,N/A
Pendle Borough Council,Operational Services,Transport Related Expense,Tyres,3204,GO PLANT FLEET SERVICES LIMITED,A0091600, 01/10/2020,OPS0307655,109.43,N,,N,N/A
Pendle Borough Council,Operational Services,Transport Related Expense,Tyres,3204,GO PLANT FLEET SERVICES LIMITED,A0091600, 29/10/2020,OPS0308151,118.68,N,,N,N/A
Pendle Borough Council,Operational Services,Transport Related Expense,Tprt : Annual Hire Charge,3601,GO PLANT FLEET SERVICES LIMITED,A0091600, 08/10/2020,OPS0307804,"3,540.62",N,,N,N/A
Pendle Borough Council,Operational Services,Transport Related Expense,Tprt : Annual Hire Charge,3601,GO PLANT FLEET SERVICES LIMITED,A0091600, 08/10/2020,OPS0307801,"3,540.62",N,,N,N/A
Pendle Borough Council,Operational Services,Transport Related Expense,Tprt : Annual Hire Charge,3601,GO PLANT FLEET SERVICES LIMITED,A0091600, 08/10/2020,OPS0307797,"3,540.62",N,,N,N/A
Pendle Borough Council,Operational Services,Transport Related Expense,Tprt : Annual Hire Charge,3601,GO PLANT FLEET SERVICES LIMITED,A0091600, 08/10/2020,OPS0307798,"3,540.62",N,,N,N/A
Pendle Borough Council,Operational Services,Transport Related Expense,Tprt : Annual Hire Charge,3601,GO PLANT FLEET SERVICES LIMITED,A0091600, 08/10/2020,OPS0307796,"3,540.62",N,,N,N/A
Pendle Borough Council,Operational Services,Transport Related Expense,Tprt : Annual Hire Charge,3601,GO PLANT FLEET SERVICES LIMITED,A0091600, 08/10/2020,OPS0307818,"3,344.64",N,,N,N/A
Pendle Borough Council,Operational Services,Transport Related Expense,Tprt : Annual Hire Charge,3601,GO PLANT FLEET SERVICES LIMITED,A0091600, 08/10/2020,OPS0307805,"3,540.62",N,,N,N/A
Pendle Borough Council,Operational Services,Transport Related Expense,Tprt : Annual Hire Charge,3601,GO PLANT FLEET SERVICES LIMITED,A0091600, 08/10/2020,OPS0307800,"3,540.62",N,,N,N/A
Pendle Borough Council,Operational Services,Transport Related Expense,Tprt : Annual Hire Charge,3601,GO PLANT FLEET SERVICES LIMITED,A0091600, 08/10/2020,OPS0307792,"3,549.74",N,,N,N/A
Pendle Borough Council,Operational Services,Transport Related Expense,Tprt : Annual Hire Charge,3601,GO PLANT FLEET SERVICES LIMITED,A0091600, 08/10/2020,OPS0307794,"3,549.74",N,,N,N/A
Pendle Borough Council,Operational Services,Transport Related Expense,Tprt : Annual Hire Charge,3601,GO PLANT FLEET SERVICES LIMITED,A0091600, 08/10/2020,OPS0307799,"3,549.74",N,,N,N/A
Pendle Borough Council,Operational Services,Transport Related Expense,Tprt : Annual Hire Charge,3601,GO PLANT FLEET SERVICES LIMITED,A0091600, 08/10/2020,OPS0307793,"3,497.07",N,,N,N/A
Pendle Borough Council,Operational Services,Transport Related Expense,Tprt : Annual Hire Charge,3601,GO PLANT FLEET SERVICES LIMITED,A0091600, 08/10/2020,OPS0307819,"3,393.00",N,,N,N/A
Pendle Borough Council,Operational Services,Transport Related Expense,Tprt : Annual Hire Charge,3601,GO PLANT FLEET SERVICES LIMITED,A0091600, 08/10/2020,OPS0307820,"2,654.17",N,,N,N/A
Pendle Borough Council,Operational Services,Transport Related Expense,Tprt : Annual Hire Charge,3601,GO PLANT FLEET SERVICES LIMITED,A0091600, 08/10/2020,OPS0307803,"1,981.53",N,,N,N/A
Pendle Borough Council,Operational Services,Transport Related Expense,Tprt : Annual Hire Charge,3601,GO PLANT FLEET SERVICES LIMITED,A0091600, 08/10/2020,OPS0307790,"1,981.53",N,,N,N/A
Pendle Borough Council,Operational Services,Transport Related Expense,Tprt : Annual Hire Charge,3601,GO PLANT FLEET SERVICES LIMITED,A0091600, 08/10/2020,OPS0307795,"1,981.53",N,,N,N/A
Pendle Borough Council,Operational Services,Transport Related Expense,Tprt : Annual Hire Charge,3601,GO PLANT FLEET SERVICES LIMITED,A0091600, 08/10/2020,OPS0307791,"1,981.53",N,,N,N/A
Pendle Borough Council,Operational Services,Transport Related Expense,Tprt : Annual Hire Charge,3601,GO PLANT FLEET SERVICES LIMITED,A0091600, 08/10/2020,OPS0307802,"1,981.53",N,,N,N/A
Pendle Borough Council,Operational Services,Transport Related Expense,Tprt : Annual Hire Charge,3601,GO PLANT FLEET SERVICES LIMITED,A0091600, 08/10/2020,OPS0307807,509.54,N,,N,N/A
Pendle Borough Council,Operational Services,Transport Related Expense,Tprt : Annual Hire Charge,3601,GO PLANT FLEET SERVICES LIMITED,A0091600, 08/10/2020,OPS0307806,509.54,N,,N,N/A
Pendle Borough Council,Operational Services,Transport Related Expense,Tprt : Annual Hire Charge,3601,GO PLANT FLEET SERVICES LIMITED,A0091600, 29/10/2020,OPS4006279,-244.83,N,,N,N/A
Pendle Borough Council,Operational Services,Transport Related Expense,Tprt : Annual Hire Charge,3601,GO PLANT FLEET SERVICES LIMITED,A0091600, 29/10/2020,OPS0308149,264.74,N,,N,N/A
Pendle Borough Council,Operational Services,Transport Related Expense,Tprt : Annual Hire Charge,3601,GO PLANT FLEET SERVICES LIMITED,A0091600, 29/10/2020,OPS0308149,496.40,N,,N,N/A
Pendle Borough Council,Operational Services,Transport Related Expense,Tprt : Annual Hire Charge,3601,GO PLANT FLEET SERVICES LIMITED,A0091600, 01/10/2020,OPS0307696,80.00,N,,N,N/A
Pendle Borough Council,Operational Services,Transport Related Expense,Tprt : Annual Hire Charge,3601,GO PLANT FLEET SERVICES LIMITED,A0091600, 08/10/2020,OPS0307822,598.81,N,,N,N/A
Pendle Borough Council,Operational Services,Transport Related Expense,Tprt : Annual Hire Charge,3601,GO PLANT FLEET SERVICES LIMITED,A0091600, 08/10/2020,OPS0307823,598.81,N,,N,N/A
Pendle Borough Council,Operational Services,Transport Related Expense,Tprt : Annual Hire Charge,3601,GO PLANT FLEET SERVICES LIMITED,A0091600, 08/10/2020,OPS0307825,598.81,N,,N,N/A
Pendle Borough Council,Operational Services,Transport Related Expense,Tprt : Annual Hire Charge,3601,GO PLANT FLEET SERVICES LIMITED,A0091600, 08/10/2020,OPS0307824,598.81,N,,N,N/A
Pendle Borough Council,Operational Services,Transport Related Expense,Tprt : Annual Hire Charge,3601,GO PLANT FLEET SERVICES LIMITED,A0091600, 08/10/2020,OPS0307814,239.53,N,,N,N/A
Pendle Borough Council,Operational Services,Transport Related Expense,Tprt : Annual Hire Charge,3601,GO PLANT FLEET SERVICES LIMITED,A0091600, 08/10/2020,OPS0307810,239.53,N,,N,N/A
Pendle Borough Council,Operational Services,Transport Related Expense,Tprt : Annual Hire Charge,3601,GO PLANT FLEET SERVICES LIMITED,A0091600, 08/10/2020,OPS0307808,239.53,N,,N,N/A
Pendle Borough Council,Operational Services,Transport Related Expense,Tprt : Annual Hire Charge,3601,GO PLANT FLEET SERVICES LIMITED,A0091600, 08/10/2020,OPS0307811,239.53,N,,N,N/A
Pendle Borough Council,Operational Services,Transport Related Expense,Tprt : Annual Hire Charge,3601,GO PLANT FLEET SERVICES LIMITED,A0091600, 08/10/2020,OPS0307809,239.53,N,,N,N/A
Pendle Borough Council,Operational Services,Transport Related Expense,Tprt : Annual Hire Charge,3601,GO PLANT FLEET SERVICES LIMITED,A0091600, 08/10/2020,OPS0307812,239.53,N,,N,N/A
Pendle Borough Council,Operational Services,Transport Related Expense,Tprt : Annual Hire Charge,3601,GO PLANT FLEET SERVICES LIMITED,A0091600, 08/10/2020,OPS0307813,239.53,N,,N,N/A
Pendle Borough Council,Operational Services,Transport Related Expense,Tprt : Annual Hire Charge,3601,GO PLANT FLEET SERVICES LIMITED,A0091600, 08/10/2020,OPS0307815,339.69,N,,N,N/A
Pendle Borough Council,Operational Services,Transport Related Expense,Tprt : Annual Hire Charge,3601,GO PLANT FLEET SERVICES LIMITED,A0091600, 08/10/2020,OPS0307821,592.28,N,,N,N/A
Pendle Borough Council,Operational Services,Transport Related Expense,Tprt : Annual Hire Charge,3601,GO PLANT FLEET SERVICES LIMITED,A0091600, 08/10/2020,OPS0307829,592.28,N,,N,N/A
Pendle Borough Council,Operational Services,Transport Related Expense,Tprt : Annual Hire Charge,3601,GO PLANT FLEET SERVICES LIMITED,A0091600, 08/10/2020,OPS0307828,592.28,N,,N,N/A
Pendle Borough Council,Operational Services,Transport Related Expense,Tprt : Annual Hire Charge,3601,GO PLANT FLEET SERVICES LIMITED,A0091600, 08/10/2020,OPS0307827,592.28,N,,N,N/A
Pendle Borough Council,Operational Services,Transport Related Expense,Tprt : Annual Hire Charge,3601,GO PLANT FLEET SERVICES LIMITED,A0091600, 08/10/2020,OPS0307817,592.28,N,,N,N/A
Pendle Borough Council,Operational Services,Transport Related Expense,Tprt : Annual Hire Charge,3601,GO PLANT FLEET SERVICES LIMITED,A0091600, 08/10/2020,OPS0307826,535.67,N,,N,N/A
Pendle Borough Council,Operational Services,Transport Related Expense,Tprt : Annual Hire Charge,3601,GO PLANT FLEET SERVICES LIMITED,A0091600, 29/10/2020,OPS4006279,-244.83,N,,N,N/A
Pendle Borough Council,Operational Services,Transport Related Expense,Tprt : Annual Hire Charge,3601,GO PLANT FLEET SERVICES LIMITED,A0091600, 29/10/2020,OPS0308148,264.74,N,,N,N/A
Pendle Borough Council,Operational Services,Transport Related Expense,Tprt : Annual Hire Charge,3601,GO PLANT FLEET SERVICES LIMITED,A0091600, 29/10/2020,OPS0308148,496.40,N,,N,N/A
Pendle Borough Council,Operational Services,Transport Related Expense,Tprt : Annual Hire Charge,3601,GO PLANT FLEET SERVICES LIMITED,A0091600, 08/10/2020,OPS0307816,239.53,N,,N,N/A
Pendle Borough Council,Engineering & Special Projects,Supplies and Services,Consultants Fees,4401,CMS LIVE,A0091625, 15/10/2020,HED0307906,"1,765.00",N,,N,N/A
Pendle Borough Council,Democratic & Legal Services,Capital Costs,Ren Grant : 1996 Act,CH22,DEVCO CONSTRUCTION LIMITED,A0091661, 01/10/2020,DAL0307632,"6,082.50",N,,N,
Pendle Borough Council,Property Services,Supplies and Services,Performing Rights Fees,4406,PPL PRS LIMITED,A0091668, 01/10/2020,EST0307637,"1,300.63",N,,N,N/A
Pendle Borough Council,Property Services,Supplies and Services,Performing Rights Fees,4406,PPL PRS LIMITED,A0091668, 01/10/2020,EST0307636,"1,034.09",N,,N,N/A
Pendle Borough Council,Engineering & Special Projects,Premises Related Expense,Bldgs : R & M : Day To Day,2001,A&G LANDSCAPES & GROUNDWORKS LIMITED,A0091675, 29/10/2020,HED0308137,37.25,N,,N,N/A
Pendle Borough Council,Engineering & Special Projects,Premises Related Expense,Bldgs : R & M : Day To Day,2001,A&G LANDSCAPES & GROUNDWORKS LIMITED,A0091675, 29/10/2020,HED0308137,37.50,N,,N,N/A
Pendle Borough Council,Engineering & Special Projects,Premises Related Expense,Bldgs : R & M : Day To Day,2001,A&G LANDSCAPES & GROUNDWORKS LIMITED,A0091675, 29/10/2020,HED0308139,180.00,N,,N,N/A
Pendle Borough Council,Engineering & Special Projects,Premises Related Expense,Bldgs : R & M : Day To Day,2001,A&G LANDSCAPES & GROUNDWORKS LIMITED,A0091675, 29/10/2020,HED0308139,600.00,N,,N,N/A
Pendle Borough Council,Engineering & Special Projects,Premises Related Expense,Grounds : R & M : Day to Day : Routine,2101,A&G LANDSCAPES & GROUNDWORKS LIMITED,A0091675, 29/10/2020,HED0308140,750.00,N,,N,N/A
Pendle Borough Council,Engineering & Special Projects,Premises Related Expense,Grounds : R & M : Day to Day : Routine,2101,A&G LANDSCAPES & GROUNDWORKS LIMITED,A0091675, 29/10/2020,HED0308140,905.00,N,,N,N/A
Pendle Borough Council,Engineering & Special Projects,Premises Related Expense,Grounds : R & M : Day to Day : Routine,2101,A&G LANDSCAPES & GROUNDWORKS LIMITED,A0091675, 08/10/2020,HED0307735,360.00,N,,N,N/A
Pendle Borough Council,Engineering & Special Projects,Premises Related Expense,Grounds : R & M : Day to Day : Routine,2101,A&G LANDSCAPES & GROUNDWORKS LIMITED,A0091675, 08/10/2020,HED0307735,"1,015.00",N,,N,N/A
Pendle Borough Council,Financial Services,Transport Related Expense,Tprt : Annual Hire Charge,3601,ISUZU CONTRACT HIRE,A0091722, 30/10/2020,AAS0308184,246.68,N,,N,N/A
Pendle Borough Council,Financial Services,Transport Related Expense,Tprt : Annual Hire Charge,3601,ISUZU CONTRACT HIRE,A0091722, 01/10/2020,AAS0308185,246.68,N,,N,N/A
Pendle Borough Council,Financial Services,Transport Related Expense,Tprt : Annual Hire Charge,3601,ISUZU CONTRACT HIRE,A0091722, 30/10/2020,AAS0308184,283.07,N,,N,N/A
Pendle Borough Council,Financial Services,Transport Related Expense,Tprt : Annual Hire Charge,3601,ISUZU CONTRACT HIRE,A0091722, 01/10/2020,AAS0308185,283.07,N,,N,N/A
Pendle Borough Council,Parks & Recreation Services,Agency Staff,Emp : Basic Wages,1001,THE BEST CONNECTION GROUP LIMITED,A0091729, 15/10/2020,PCO0307903,449.18,N,,N,N/A
Pendle Borough Council,Parks & Recreation Services,Agency Staff,Emp : Basic Wages,1001,THE BEST CONNECTION GROUP LIMITED,A0091729, 22/10/2020,PCO0308015,449.18,N,,N,N/A
Pendle Borough Council,Parks & Recreation Services,Agency Staff,Emp : Basic Wages,1001,THE BEST CONNECTION GROUP LIMITED,A0091729, 29/10/2020,PCO0308121,449.18,N,,N,N/A
Pendle Borough Council,Operational Services,Agency Staff,Emp : Agency Wages,1004,THE BEST CONNECTION GROUP LIMITED,A0091729, 01/10/2020,OPS0307674,378.00,N,,N,N/A
Pendle Borough Council,Operational Services,Supplies and Services,Other Expenses,4705,THE BEST CONNECTION GROUP LIMITED,A0091729, 08/10/2020,OPS0307788,267.75,N,,N,N/A
Pendle Borough Council,Operational Services,Supplies and Services,Other Expenses,4705,THE BEST CONNECTION GROUP LIMITED,A0091729, 22/10/2020,OPS0308006,459.27,N,,N,N/A
Pendle Borough Council,Operational Services,Supplies and Services,Other Expenses,4705,THE BEST CONNECTION GROUP LIMITED,A0091729, 01/10/2020,OPS0307682,466.20,N,,N,N/A
Pendle Borough Council,Operational Services,Supplies and Services,Other Expenses,4705,THE BEST CONNECTION GROUP LIMITED,A0091729, 22/10/2020,OPS0308011,466.20,N,,N,N/A
Pendle Borough Council,Operational Services,Supplies and Services,Other Expenses,4705,THE BEST CONNECTION GROUP LIMITED,A0091729, 29/10/2020,OPS0308110,475.65,N,,N,N/A
Pendle Borough Council,Information Services,Supplies and Services,Other Expenses,4705,ESRI (UK) LIMITED,A0091766, 22/10/2020,ITS0307989,560.00,N,,N,N/A
Pendle Borough Council,Housing Regeneration Services,Supplies and Services,Consultants Fees,4401,THE OYSTER PARTNERSHIP LIMITED,A0091781, 08/10/2020,HMR0307836,792.00,N,,N,N/A
Pendle Borough Council,Democratic & Legal Services,Supplies and Services,Consultants Fees,4401,THE OYSTER PARTNERSHIP LIMITED,A0091781, 01/10/2020,DAL0307628,"1,260.00",N,,N,N/A
Pendle Borough Council,Housing Regeneration Services,Supplies and Services,Consultants Fees,4401,THE OYSTER PARTNERSHIP LIMITED,A0091781, 15/10/2020,HMR0307880,"1,260.00",N,,N,N/A
Pendle Borough Council,Democratic & Legal Services,Supplies and Services,Consultants Fees,4401,THE OYSTER PARTNERSHIP LIMITED,A0091781, 22/10/2020,DAL0307957,"1,260.92",N,,N,N/A
Pendle Borough Council,Democratic & Legal Services,Supplies and Services,Consultants Fees,4401,THE OYSTER PARTNERSHIP LIMITED,A0091781, 01/10/2020,DAL0307627,"1,021.70",N,,N,N/A
Pendle Borough Council,Democratic & Legal Services,Supplies and Services,Consultants Fees,4401,THE OYSTER PARTNERSHIP LIMITED,A0091781, 22/10/2020,DAL0307956,"1,025.70",N,,N,N/A
Pendle Borough Council,Housing Regeneration Services,Supplies and Services,Consultants Fees,4401,THE OYSTER PARTNERSHIP LIMITED,A0091781, 15/10/2020,HMR0307879,"1,029.95",N,,N,N/A
Pendle Borough Council,Housing Regeneration Services,Supplies and Services,Consultants Fees,4401,THE OYSTER PARTNERSHIP LIMITED,A0091781, 08/10/2020,HMR0307835,"1,070.25",N,,N,N/A
Pendle Borough Council,Operational Services,Transport Related Expense,Tprt : Repairs : General,3105,REDACTED - PERSONAL DATA,A0091836, 08/10/2020,OPS0307778,19.00,N,,N,N/A
Pendle Borough Council,Housing Regeneration Services,Capital Costs,Ren Grant : 1996 Act,CH22,DYNAMIC PLUMBING AND HEATING,A0091941, 08/10/2020,HMR0307839,"8,750.00",N,,N,
Pendle Borough Council,Engineering & Special Projects,Premises Related Expense,Grounds : R & M : Day to Day : Routine,2101,CIS STREET FURNITURE LIMITED,A0091983, 08/10/2020,HED0307740,156.00,N,,N,N/A
Pendle Borough Council,Parks & Recreation Services,Supplies and Services,Miscellaneous : Other,4707,A1 SKIP HIRE LIMITED,A0092012, 15/10/2020,PCO0307895,488.10,N,,N,N/A
Pendle Borough Council,Democratic & Legal Services,Capital Costs,Ren Grant : 1996 Act,CH22,COURTIS THOMAS CONSTRUCTION LIMITED,A0092428, 01/10/2020,DAL0307630,"5,397.50",N,,N,
Pendle Borough Council,Democratic & Legal Services,Capital Costs,Ren Grant : 1996 Act,CH22,COURTIS THOMAS CONSTRUCTION LIMITED,A0092428, 01/10/2020,DAL0307631,"6,852.50",N,,N,
Pendle Borough Council,Housing Regeneration Services,Transfer Payments,Accommodation ,6103,MR WS BHATTI MR ZA BUTT PENDLE LODGE,A0092429, 01/10/2020,HMR0307648,135.00,N,,N,N/A
Pendle Borough Council,Housing Regeneration Services,Transfer Payments,Accommodation ,6103,MR WS BHATTI MR ZA BUTT PENDLE LODGE,A0092429, 01/10/2020,HMR0307649,135.00,N,,N,N/A
Pendle Borough Council,Housing Regeneration Services,Transfer Payments,Accommodation ,6103,MR WS BHATTI MR ZA BUTT PENDLE LODGE,A0092429, 22/10/2020,HMR0307981,135.00,N,,N,N/A
Pendle Borough Council,Housing Regeneration Services,Transfer Payments,Accommodation ,6103,MR WS BHATTI MR ZA BUTT PENDLE LODGE,A0092429, 22/10/2020,HMR0307982,135.00,N,,N,N/A
Pendle Borough Council,Housing Regeneration Services,Transfer Payments,Accommodation ,6103,MR WS BHATTI MR ZA BUTT PENDLE LODGE,A0092429, 22/10/2020,HMR0307983,135.00,N,,N,N/A
Pendle Borough Council,Housing Regeneration Services,Transfer Payments,Accommodation ,6103,MR WS BHATTI MR ZA BUTT PENDLE LODGE,A0092429, 22/10/2020,HMR0307980,"2,700.00",N,,N,N/A
Pendle Borough Council,Financial Services,Supplies and Services,Consultants Fees,4401,LIVERPOOL UNIVERSITY HOSPITALS NHS FOUNDATIONTRUST,A0092555, 22/10/2020,AAS0307936,"12,937.50",N,,N,N/A
Pendle Borough Council,Operational Services,Supplies and Services,EFM Materials,4004,AMAZON PAYMENTS UK LIMITED,A0093876, 08/10/2020,OPS0307749,6.47,N,,N,N/A
Pendle Borough Council,Operational Services,Supplies and Services,EFM Materials,4004,AMAZON PAYMENTS UK LIMITED,A0093876, 08/10/2020,OPS0307780,6.47,N,,N,N/A
Pendle Borough Council,Operational Services,Supplies and Services,EFM Materials,4004,AMAZON PAYMENTS UK LIMITED,A0093876, 08/10/2020,OPS0307781,6.47,N,,N,N/A
Pendle Borough Council,Operational Services,Supplies and Services,EFM Materials,4004,AMAZON PAYMENTS UK LIMITED,A0093876, 08/10/2020,OPS0307782,6.47,N,,N,N/A
Pendle Borough Council,Operational Services,Supplies and Services,EFM Materials,4004,AMAZON PAYMENTS UK LIMITED,A0093876, 08/10/2020,OPS0307783,6.47,N,,N,N/A
Pendle Borough Council,Operational Services,Supplies and Services,EFM Materials,4004,AMAZON PAYMENTS UK LIMITED,A0093876, 08/10/2020,OPS0307784,6.47,N,,N,N/A
Pendle Borough Council,Operational Services,Supplies and Services,EFM Materials,4004,AMAZON PAYMENTS UK LIMITED,A0093876, 08/10/2020,OPS0307785,6.47,N,,N,N/A
Pendle Borough Council,Operational Services,Supplies and Services,EFM Materials,4004,AMAZON PAYMENTS UK LIMITED,A0093876, 08/10/2020,OPS0307786,6.47,N,,N,N/A
Pendle Borough Council,Operational Services,Supplies and Services,EFM Materials,4004,AMAZON PAYMENTS UK LIMITED,A0093876, 15/10/2020,OPS0307889,14.22,N,,N,N/A
Pendle Borough Council,Operational Services,Supplies and Services,EFM Materials,4004,AMAZON PAYMENTS UK LIMITED,A0093876, 22/10/2020,OPS0308002,25.73,N,,N,N/A
Pendle Borough Council,Operational Services,Supplies and Services,EFM Materials,4004,AMAZON PAYMENTS UK LIMITED,A0093876, 22/10/2020,OPS0308050,31.56,N,,N,N/A
Pendle Borough Council,Operational Services,Supplies and Services,EFM Materials,4004,AMAZON PAYMENTS UK LIMITED,A0093876, 15/10/2020,OPS0307889,63.12,N,,N,N/A
Pendle Borough Council,Engineering & Special Projects,Premises Related Expense,Grounds : R & M : Day to Day : Routine,2101,CONSERVATION CONTRACTS NORTH WEST LIMITED,A0094008, 08/10/2020,HED0307738,141.00,N,,N,N/A
Pendle Borough Council,Engineering & Special Projects,Premises Related Expense,Grounds : R & M : Day to Day : Routine,2101,CONSERVATION CONTRACTS NORTH WEST LIMITED,A0094008, 08/10/2020,HED0307738,63.00,N,,N,N/A
Pendle Borough Council,Engineering & Special Projects,Premises Related Expense,Grounds : R & M : Day to Day : Routine,2101,CONSERVATION CONTRACTS NORTH WEST LIMITED,A0094008, 08/10/2020,HED0307739,212.00,N,,N,N/A
Pendle Borough Council,Engineering & Special Projects,Premises Related Expense,Grounds : R & M : Day to Day : Routine,2101,CONSERVATION CONTRACTS NORTH WEST LIMITED,A0094008, 08/10/2020,HED0307738,358.00,N,,N,N/A
Pendle Borough Council,Property Services,Capital Costs,Capital : Payments,CD14,FT LEISURE LIMITED,A0094027, 01/10/2020,EST0307693,"7,863.83",N,,N,N/A
Pendle Borough Council,Property Services,Capital Costs,Capital : Payments,CD14,RAM SERVICES LIMITED,A0094157, 01/10/2020,EST0307639,"1,223.76",N,,N,N/A
Pendle Borough Council,Engineering & Special Projects,Capital Costs,Capital : Payments,CD14,APTUS UTILITIES LIMITED,A0094260, 29/10/2020,HED0308138,"3,074.91",N,,N,N/A
Pendle Borough Council,Property Services,Premises Related Expense,Gas,2202,TOTAL GAS & POWER LIMITED,A0094262, 15/10/2020,EST0307877,31.05,N,,N,N/A
Pendle Borough Council,Human Resources,Supplies and Services,Seminars etc All Costs,4601,SALES GEEK,A0094265, 01/10/2020,PER0307700,"1,196.00",N,,N,N/A
Pendle Borough Council,Engineering & Special Projects,Capital Costs,Capital : Payments,CD14,FOX DESIGN & MANUFACTURING SERVICES LTD,A0094266, 15/10/2020,HED0307918,"3,330.00",N,,N,N/A
Pendle Borough Council,Planning & Building Control,Capital Costs,Capital : Payments,CD14,ROBERT WINDLES FOUNDATION,A0094271, 08/10/2020,PBC0307754,900.00,N,,N,N/A
Pendle Borough Council,Democratic & Legal Services,Supplies and Services,LCC Levy (Admins Costs),4419,CDER GROUP LIMITED,A0094274, 22/10/2020,DAL0307942,-75.00,N,,N,N/A
Pendle Borough Council,Democratic & Legal Services,Supplies and Services,LCC Levy (Admins Costs),4419,CDER GROUP LIMITED,A0094274, 22/10/2020,DAL0307943,-75.00,N,,N,N/A
Pendle Borough Council,Democratic & Legal Services,Supplies and Services,LCC Levy (Admins Costs),4419,CDER GROUP LIMITED,A0094274, 22/10/2020,DAL0307942,75.00,N,,N,N/A
Pendle Borough Council,Democratic & Legal Services,Supplies and Services,LCC Levy (Admins Costs),4419,CDER GROUP LIMITED,A0094274, 22/10/2020,DAL0307943,75.00,N,,N,N/A
Pendle Borough Council,Engineering & Special Projects,Supplies and Services,Consultants Fees,4401,HATCH ASSOCIATES LMITED,A0094291, 08/10/2020,HED0307771,"17,000.00",N,,N,N/A
Pendle Borough Council,Property Services,,Rents : Non-VATable,9304,REDACTED - PERSONAL DATA,A0094293, 22/10/2020,EST0307960,20.00,N,,N,N/A
Pendle Borough Council,Housing Regeneration Services,Capital Costs,Ren Grant : 1996 Act,CH22,SOUTHFIELD CONSTRUCTION,A0094294, 15/10/2020,HMR0307885,"24,620.00",N,,N,
Pendle Borough Council,Financial Services,,Other Income : Non-VATable,9303,BFD PROPERTY DEVELOPMENT LIMITED,A0094297, 22/10/2020,AAS0307938,180.00,N,,N,N/A
Pendle Borough Council,Property Services,Premises Related Expense,Electricity,2203,BRITISH GAS LITE,A0094299, 29/10/2020,EST0308107,19.46,N,,N,N/A
Pendle Borough Council,Housing Regeneration Services,Supplies and Services,Other Expenses,4705,REDACTED - PERSONAL DATA,A0094300, 29/10/2020,HMR0308142,300.00,N,,N,N/A
Pendle Borough Council,Operational Services,Agency Costs,Refuse Collection DLO,5005,REDACTED - PERSONAL DATA,A0094301, 29/10/2020,OPS0308109,720.00,N,,N,N/A
Pendle Borough Council,Planning & Building Control,Supplies and Services,Other Expenses,4705,LICENSING 4U LIMITED,A0094302, 29/10/2020,PBC0308118,"4,350.00",N,,N,N/A
